Workbook

Sheet Начальная (hidden)
C2: Настройки табеля | F2: Для заметок касающиеся улучшения работы табеля
F3: 1. Для правильной синхронизации книгу не перемещать. Путь: E:\Хомич Н.Н\! БРИГАДНЫЙ\
B4: Подразделение | C4: Бумажный цех
B6: Начальник цеха | C6: Романов В.В. | F6: 2. Для правильной синхронизации листа "Расчёт молока" необходимо архив по месяцам хранить: E:\Хомич Н.Н\! БРИГАДНЫЙ\по месяцам
B8: Мастер смены | C8: Хомич Н.Н.
B10: Смена | C10: см. Хомич Н.Н.
B12: Месяц / Год | C12: 2015-12-01
B14: Цвет табеля
B20: Добавить / удалить фамилию
B22: Табельный номер | C22: =IFERROR(VLOOKUP(C20,doplata,2),"") -> 
B24: Контракт, % | C24: =IFERROR(VLOOKUP(C20,doplata,3),"") ->  | D24: закрыть
B26: Кол. договор, % | C26: =IFERROR(VLOOKUP(C20,doplata,4),"") -> 
B28: Проф. мастерство, % | C28: =IFERROR(VLOOKUP(C20,doplata,5),"") -> 
B30: За руководство бригадой, % | C30: =IFERROR(VLOOKUP(C20,doplata,6),"") -> 
B32: За сложность, % | C32: =IFERROR(VLOOKUP(C20,doplata,7),"") -> 
B34: Тариф. коэффициент, % | C34: =IFERROR(VLOOKUP(C20,doplata,8),"") -> 
B36: Надбавка за стаж, % | C36: =IFERROR(VLOOKUP(C20,doplata,9),"") -> 
B38: Добавить / удалить профессию
B40: Час. тариф. ставка, руб. | C40: =IFERROR(VLOOKUP(C38,tarif.stavka,2),"") -> 
B42: Добавить / удалить наряд
B44: Расценка за единицу, руб. | C44: =IFERROR(VLOOKUP(C42,rascenka.za.edenicu,2),"") -> 
B46: Добавить / удалить знаки
B48: Добавить / удалить праздники
B50: Добавить / удалить ед.измерения
B52: Добавить / удалить прочее

Sheet БДМ№1
B1: =Начальная!C12 -> 2015-12-01 | D1: =Начальная!C10 -> см. Хомич Н.Н.
B3: Таб№ | C3: Фамилия, Имя, Отчество
A5: 1 | B5: =IFERROR(VLOOKUP(C5,Список!$B$2:$C$149,2,0),"") -> 465 | C5: Рудницкий С.Н. | D5: Машинист 6 р.
B6: =IFERROR(VLOOKUP(C6,Список!$B$2:$C$149,2,0),"") -> 
B7: =IFERROR(VLOOKUP(C7,Список!$B$2:$C$149,2,0),"") -> 
B8: =IFERROR(VLOOKUP(C8,Список!$B$2:$C$149,2,0),"") -> 
A9: 2 | B9: =IFERROR(VLOOKUP(C9,Список!$B$2:$C$149,2,0),"") -> 761 | C9: Сацук А.Л. | D9: Машинист 6 р.
B10: =IFERROR(VLOOKUP(C10,Список!$B$2:$C$149,2,0),"") -> 761 | C10: Сацук А.Л. | D10: Накатчик 3 р. %
B11: =IFERROR(VLOOKUP(C11,Список!$B$2:$C$149,2,0),"") -> 761 | C11: Сацук А.Л. | D11: Сушильщик 4 р. %
B12: =IFERROR(VLOOKUP(C12,Список!$B$2:$C$149,2,0),"") -> 
B13: =IFERROR(VLOOKUP(C13,Список!$B$2:$C$149,2,0),"") -> 
A14: 3 | B14: =IFERROR(VLOOKUP(C14,Список!$B$2:$C$149,2,0),"") -> 1674 | C14: Орловский А.М. | D14: Перссовщик 3 р.
B15: =IFERROR(VLOOKUP(C15,Список!$B$2:$C$149,2,0),"") -> 
B16: =IFERROR(VLOOKUP(C16,Список!$B$2:$C$149,2,0),"") -> 
A17: 4 | B17: =IFERROR(VLOOKUP(C17,Список!$B$2:$C$149,2,0),"") -> 1179 | C17: Брикун М.А. | D17: Сушильщик 4 р.
B18: =IFERROR(VLOOKUP(C18,Список!$B$2:$C$149,2,0),"") -> 1179 | C18: Брикун М.А. | D18: Накатчик 3 р. %
B19: =IFERROR(VLOOKUP(C19,Список!$B$2:$C$149,2,0),"") -> 
B20: =IFERROR(VLOOKUP(C20,Список!$B$2:$C$149,2,0),"") -> 
B21: =IFERROR(VLOOKUP(C21,Список!$B$2:$C$149,2,0),"") -> 
A22: 5 | B22: =IFERROR(VLOOKUP(C22,Список!$B$2:$C$149,2,0),"") -> 491 | C22: Жизневская Т.Ф. | D22: Разм. РПО 4 р.
B23: =IFERROR(VLOOKUP(C23,Список!$B$2:$C$149,2,0),"") -> 
B24: =IFERROR(VLOOKUP(C24,Список!$B$2:$C$149,2,0),"") -> 
B25: =IFERROR(VLOOKUP(C25,Список!$B$2:$C$149,2,0),"") -> 
A26: 6 | B26: =IFERROR(VLOOKUP(C26,Список!$B$2:$C$149,2,0),"") -> 856 | C26: Залан А.В. | D26: Разм. РПО 3 р.
B27: =IFERROR(VLOOKUP(C27,Список!$B$2:$C$149,2,0),"") -> 
B28: =IFERROR(VLOOKUP(C28,Список!$B$2:$C$149,2,0),"") -> 
B29: =IFERROR(VLOOKUP(C29,Список!$B$2:$C$149,2,0),"") -> 
A30: 7 | B30: =IFERROR(VLOOKUP(C30,Список!$B$2:$C$149,2,0),"") -> 1311 | C30: Грузд Н.Н. | D30: Ап.пр.хим.р-в 3 р.
B31: =IFERROR(VLOOKUP(C31,Список!$B$2:$C$149,2,0),"") -> 
B32: =IFERROR(VLOOKUP(C32,Список!$B$2:$C$149,2,0),"") -> 
B33: =IFERROR(VLOOKUP(C33,Список!$B$2:$C$149,2,0),"") -> 
A34: 8 | B34: =IFERROR(VLOOKUP(C34,Список!$B$2:$C$149,2,0),"") -> 170 | C34: Кудревич О.М. | D34: Ап.пр.хим.р-в 3 р.
B35: =IFERROR(VLOOKUP(C35,Список!$B$2:$C$149,2,0),"") -> 
B36: =IFERROR(VLOOKUP(C36,Список!$B$2:$C$149,2,0),"") -> 
B37: =IFERROR(VLOOKUP(C37,Список!$B$2:$C$149,2,0),"") -> 
A38: 9 | B38: =IFERROR(VLOOKUP(C38,Список!$B$2:$C$149,2,0),"") -> 509 | C38: Заяц Т.Л. | D38: Резчик ПРС 4 р.
B39: =IFERROR(VLOOKUP(C39,Список!$B$2:$C$149,2,0),"") -> 
B40: =IFERROR(VLOOKUP(C40,Список!$B$2:$C$149,2,0),"") -> 
B41: =IFERROR(VLOOKUP(C41,Список!$B$2:$C$149,2,0),"") -> 
A42: 10 | B42: =IFERROR(VLOOKUP(C42,Список!$B$2:$C$149,2,0),"") -> 1379 | C42: Кадевич О.В. | D42: Резчик ПРС 3 р.
B43: =IFERROR(VLOOKUP(C43,Список!$B$2:$C$149,2,0),"") -> 
B44: =IFERROR(VLOOKUP(C44,Список!$B$2:$C$149,2,0),"") -> 
B45: =IFERROR(VLOOKUP(C45,Список!$B$2:$C$149,2,0),"") -> 
A46: 11 | B46: =IFERROR(VLOOKUP(C46,Список!$B$2:$C$149,2,0),"") -> 342 | C46: Амосова Т.Ф. | D46: Маш.уп. маш. 2 р.
B47: =IFERROR(VLOOKUP(C47,Список!$B$2:$C$149,2,0),"") -> 
B53: =Начальная!C12 -> 2015-12-01 | D53: =Начальная!C10 -> см. Хомич Н.Н.
B55: Таб№ | C55: Фамилия, Имя, Отчество
A57: 12 | B57: =IFERROR(VLOOKUP(C57,Список!$B$2:$C$149,2,0),"") -> 1140 | C57: Цедрик Т.Н. | D57: Маш.уп. маш. 2 р.
B58: =IFERROR(VLOOKUP(C58,Список!$B$2:$C$149,2,0),"") -> 
B59: =IFERROR(VLOOKUP(C59,Список!$B$2:$C$149,2,0),"") -> 
B60: =IFERROR(VLOOKUP(C60,Список!$B$2:$C$149,2,0),"") -> 
A61: 13 | B61: =IFERROR(VLOOKUP(C61,Список!$B$2:$C$149,2,0),"") -> 552 | C61: Гендик Н.В. | D61: Разм. ГРВ 3 р.
B62: =IFERROR(VLOOKUP(C62,Список!$B$2:$C$149,2,0),"") -> 
B63: =IFERROR(VLOOKUP(C63,Список!$B$2:$C$149,2,0),"") -> 
B64: =IFERROR(VLOOKUP(C64,Список!$B$2:$C$149,2,0),"") -> 
A65: 14 | B65: =IFERROR(VLOOKUP(C65,Список!$B$2:$C$149,2,0),"") -> 1454 | C65: Комадей Д.В. | D65: Разм. ПО 3 р.
B66: =IFERROR(VLOOKUP(C66,Список!$B$2:$C$149,2,0),"") -> 
B67: =IFERROR(VLOOKUP(C67,Список!$B$2:$C$149,2,0),"") -> 
B68: =IFERROR(VLOOKUP(C68,Список!$B$2:$C$149,2,0),"") -> 
A69: 15 | B69: =IFERROR(VLOOKUP(C69,Список!$B$2:$C$149,2,0),"") -> 2035 | C69: Дунаев С.Е. | D69: Разм. ПО 3 р.
B70: =IFERROR(VLOOKUP(C70,Список!$B$2:$C$149,2,0),"") -> 
B71: =IFERROR(VLOOKUP(C71,Список!$B$2:$C$149,2,0),"") -> 
A72: 16 | B72: =IFERROR(VLOOKUP(C72,Список!$B$2:$C$149,2,0),"") -> 70 | C72: Ясинский В.С. | D72: Резчик ПРС 4 р.
B73: =IFERROR(VLOOKUP(C73,Список!$B$2:$C$149,2,0),"") -> 
B74: =IFERROR(VLOOKUP(C74,Список!$B$2:$C$149,2,0),"") -> 
B75: =IFERROR(VLOOKUP(C75,Список!$B$2:$C$149,2,0),"") -> 1704 | C75: Федотов С.В.
B76: =IFERROR(VLOOKUP(C76,Список!$B$2:$C$149,2,0),"") -> 
B77: =IFERROR(VLOOKUP(C77,Список!$B$2:$C$149,2,0),"") -> 
B78: =IFERROR(VLOOKUP(C78,Список!$B$2:$C$149,2,0),"") -> 
B79: =IFERROR(VLOOKUP(C79,Список!$B$2:$C$149,2,0),"") -> 
B80: =IFERROR(VLOOKUP(C80,Список!$B$2:$C$149,2,0),"") -> 
B81: =IFERROR(VLOOKUP(C81,Список!$B$2:$C$149,2,0),"") -> 
B82: =IFERROR(VLOOKUP(C82,Список!$B$2:$C$149,2,0),"") -> 
B83: =IFERROR(VLOOKUP(C83,Список!$B$2:$C$149,2,0),"") -> 
B84: =IFERROR(VLOOKUP(C84,Список!$B$2:$C$149,2,0),"") -> 
B85: =IFERROR(VLOOKUP(C85,Список!$B$2:$C$149,2,0),"") -> 
B86: =IFERROR(VLOOKUP(C86,Список!$B$2:$C$149,2,0),"") -> 
B87: =IFERROR(VLOOKUP(C87,Список!$B$2:$C$149,2,0),"") -> 
B88: =IFERROR(VLOOKUP(C88,Список!$B$2:$C$149,2,0),"") -> 
B89: =IFERROR(VLOOKUP(C89,Список!$B$2:$C$149,2,0),"") -> 
B90: =IFERROR(VLOOKUP(C90,Список!$B$2:$C$149,2,0),"") -> 
B91: =IFERROR(VLOOKUP(C91,Список!$B$2:$C$149,2,0),"") -> 
B92: =IFERROR(VLOOKUP(C92,Список!$B$2:$C$149,2,0),"") -> 
B93: =IFERROR(VLOOKUP(C93,Список!$B$2:$C$149,2,0),"") -> 
B94: =IFERROR(VLOOKUP(C94,Список!$B$2:$C$149,2,0),"") -> 
B95: =IFERROR(VLOOKUP(C95,Список!$B$2:$C$149,2,0),"") -> 
B96: =IFERROR(VLOOKUP(C96,Список!$B$2:$C$149,2,0),"") -> 
B97: =IFERROR(VLOOKUP(C97,Список!$B$2:$C$149,2,0),"") -> 
B98: =IFERROR(VLOOKUP(C98,Список!$B$2:$C$149,2,0),"") -> 
B99: =IFERROR(VLOOKUP(C99,Список!$B$2:$C$149,2,0),"") -> 

Sheet Общий табель
A3: № | B3: Таб.№ | C3: Ф.И.O. | D3: Должность
A6: =IF(C6<>"",ROW()-ROW(A$5),"") -> 1 | B6: =IFERROR(VLOOKUP(C6,Список!$B$2:$C$149,2,0),"") -> 465 | C6: =IFERROR(VLOOKUP(ROW($A1),БДМ№1!$A$5:$D$108,COLUMN(),0),"") -> Рудницкий С.Н. | D6: =IFERROR(VLOOKUP(ROW($A1),БДМ№1!$A$5:$D$108,COLUMN(),0),"") -> Машинист 6 р.
A7: =IF(C7<>"",ROW()-ROW(A$5),"") -> 2 | B7: =IFERROR(VLOOKUP(C7,Список!$B$2:$C$149,2,0),"") -> 761 | C7: =IFERROR(VLOOKUP(ROW($A2),БДМ№1!$A$5:$D$108,COLUMN(),0),"") -> Сацук А.Л. | D7: =IFERROR(VLOOKUP(ROW($A2),БДМ№1!$A$5:$D$108,COLUMN(),0),"") -> Машинист 6 р.
A8: 3 | B8: =IFERROR(VLOOKUP(C8,Список!$B$2:$C$149,2,0),"") -> 1674 | C8: =IFERROR(VLOOKUP(ROW($A3),БДМ№1!$A$5:$D$108,COLUMN(),0),"") -> Орловский А.М. | D8: =IFERROR(VLOOKUP(ROW($A3),БДМ№1!$A$5:$D$108,COLUMN(),0),"") -> Перссовщик 3 р.
A9: 4 | B9: =IFERROR(VLOOKUP(C9,Список!$B$2:$C$149,2,0),"") -> 1179 | C9: =IFERROR(VLOOKUP(ROW($A4),БДМ№1!$A$5:$D$108,COLUMN(),0),"") -> Брикун М.А. | D9: =IFERROR(VLOOKUP(ROW($A4),БДМ№1!$A$5:$D$108,COLUMN(),0),"") -> Сушильщик 4 р.
A10: 5 | B10: =IFERROR(VLOOKUP(C10,Список!$B$2:$C$149,2,0),"") -> 491 | C10: =IFERROR(VLOOKUP(ROW($A5),БДМ№1!$A$5:$D$108,COLUMN(),0),"") -> Жизневская Т.Ф. | D10: =IFERROR(VLOOKUP(ROW($A5),БДМ№1!$A$5:$D$108,COLUMN(),0),"") -> Разм. РПО 4 р.
A11: 6 | B11: =IFERROR(VLOOKUP(C11,Список!$B$2:$C$149,2,0),"") -> 856 | C11: =IFERROR(VLOOKUP(ROW($A6),БДМ№1!$A$5:$D$108,COLUMN(),0),"") -> Залан А.В. | D11: =IFERROR(VLOOKUP(ROW($A6),БДМ№1!$A$5:$D$108,COLUMN(),0),"") -> Разм. РПО 3 р.
A12: 7 | B12: =IFERROR(VLOOKUP(C12,Список!$B$2:$C$149,2,0),"") -> 1311 | C12: =IFERROR(VLOOKUP(ROW($A7),БДМ№1!$A$5:$D$108,COLUMN(),0),"") -> Грузд Н.Н. | D12: =IFERROR(VLOOKUP(ROW($A7),БДМ№1!$A$5:$D$108,COLUMN(),0),"") -> Ап.пр.хим.р-в 3 р.
A13: 8 | B13: =IFERROR(VLOOKUP(C13,Список!$B$2:$C$149,2,0),"") -> 170 | C13: =IFERROR(VLOOKUP(ROW($A8),БДМ№1!$A$5:$D$108,COLUMN(),0),"") -> Кудревич О.М. | D13: =IFERROR(VLOOKUP(ROW($A8),БДМ№1!$A$5:$D$108,COLUMN(),0),"") -> Ап.пр.хим.р-в 3 р.
A14: 9 | B14: =IFERROR(VLOOKUP(C14,Список!$B$2:$C$149,2,0),"") -> 509 | C14: =IFERROR(VLOOKUP(ROW($A9),БДМ№1!$A$5:$D$108,COLUMN(),0),"") -> Заяц Т.Л. | D14: =IFERROR(VLOOKUP(ROW($A9),БДМ№1!$A$5:$D$108,COLUMN(),0),"") -> Резчик ПРС 4 р.
A15: 10 | B15: =IFERROR(VLOOKUP(C15,Список!$B$2:$C$149,2,0),"") -> 1379 | C15: =IFERROR(VLOOKUP(ROW($A10),БДМ№1!$A$5:$D$108,COLUMN(),0),"") -> Кадевич О.В. | D15: =IFERROR(VLOOKUP(ROW($A10),БДМ№1!$A$5:$D$108,COLUMN(),0),"") -> Резчик ПРС 3 р.
A16: 11 | B16: =IFERROR(VLOOKUP(C16,Список!$B$2:$C$149,2,0),"") -> 342 | C16: =IFERROR(VLOOKUP(ROW($A11),БДМ№1!$A$5:$D$108,COLUMN(),0),"") -> Амосова Т.Ф. | D16: =IFERROR(VLOOKUP(ROW($A11),БДМ№1!$A$5:$D$108,COLUMN(),0),"") -> Маш.уп. маш. 2 р.
A17: 12 | B17: =IFERROR(VLOOKUP(C17,Список!$B$2:$C$149,2,0),"") -> 1140 | C17: =IFERROR(VLOOKUP(ROW($A12),БДМ№1!$A$5:$D$108,COLUMN(),0),"") -> Цедрик Т.Н. | D17: =IFERROR(VLOOKUP(ROW($A12),БДМ№1!$A$5:$D$108,COLUMN(),0),"") -> Маш.уп. маш. 2 р.
A18: 13 | B18: =IFERROR(VLOOKUP(C18,Список!$B$2:$C$149,2,0),"") -> 552 | C18: =IFERROR(VLOOKUP(ROW($A13),БДМ№1!$A$5:$D$108,COLUMN(),0),"") -> Гендик Н.В. | D18: =IFERROR(VLOOKUP(ROW($A13),БДМ№1!$A$5:$D$108,COLUMN(),0),"") -> Разм. ГРВ 3 р.
A19: 14 | B19: =IFERROR(VLOOKUP(C19,Список!$B$2:$C$149,2,0),"") -> 1454 | C19: =IFERROR(VLOOKUP(ROW($A14),БДМ№1!$A$5:$D$108,COLUMN(),0),"") -> Комадей Д.В. | D19: =IFERROR(VLOOKUP(ROW($A14),БДМ№1!$A$5:$D$108,COLUMN(),0),"") -> Разм. ПО 3 р.
A20: 15 | B20: =IFERROR(VLOOKUP(C20,Список!$B$2:$C$149,2,0),"") -> 2035 | C20: =IFERROR(VLOOKUP(ROW($A15),БДМ№1!$A$5:$D$108,COLUMN(),0),"") -> Дунаев С.Е. | D20: =IFERROR(VLOOKUP(ROW($A15),БДМ№1!$A$5:$D$108,COLUMN(),0),"") -> Разм. ПО 3 р.
A21: 16 | B21: =IFERROR(VLOOKUP(C21,Список!$B$2:$C$149,2,0),"") -> 70 | C21: =IFERROR(VLOOKUP(ROW($A16),БДМ№1!$A$5:$D$108,COLUMN(),0),"") -> Ясинский В.С. | D21: =IFERROR(VLOOKUP(ROW($A16),БДМ№1!$A$5:$D$108,COLUMN(),0),"") -> Резчик ПРС 4 р.
B22: =IFERROR(VLOOKUP(C22,Список!$B$2:$C$149,2,0),"") ->  | C22: =IFERROR(VLOOKUP(ROW($A17),БДМ№1!$A$5:$D$108,COLUMN(),0),"") ->  | D22: =IFERROR(VLOOKUP(ROW($A17),БДМ№1!$A$5:$D$108,COLUMN(),0),"") -> 
A23: =IF(C23<>"",MAX($A$6:A22)+1,"") ->  | B23: =IFERROR(VLOOKUP(C23,Список!$B$2:$C$149,2,0),"") ->  | C23: =IFERROR(VLOOKUP(ROW($A18),БДМ№1!$A$5:$D$108,COLUMN(),0),"") ->  | D23: =IFERROR(VLOOKUP(ROW($A18),БДМ№1!$A$5:$D$108,COLUMN(),0),"") -> 
A24: =IF(C24<>"",MAX($A$6:A23)+1,"") ->  | B24: =IFERROR(VLOOKUP(C24,Список!$B$2:$C$149,2,0),"") ->  | C24: =IFERROR(VLOOKUP(ROW($A19),БДМ№1!$A$5:$D$108,COLUMN(),0),"") ->  | D24: =IFERROR(VLOOKUP(ROW($A19),БДМ№1!$A$5:$D$108,COLUMN(),0),"") -> 
A25: =IF(C25<>"",MAX($A$6:A24)+1,"") ->  | B25: =IFERROR(VLOOKUP(C25,Список!$B$2:$C$149,2,0),"") ->  | C25: =IFERROR(VLOOKUP(ROW($A20),БДМ№1!$A$5:$D$108,COLUMN(),0),"") -> 
A26: =IF(C26<>"",MAX($A$6:A25)+1,"") ->  | B26: =IFERROR(VLOOKUP(C26,Список!$B$2:$C$149,2,0),"") ->  | C26: =IFERROR(VLOOKUP(ROW($A21),БДМ№1!$A$5:$D$108,COLUMN(),0),"") ->  | D26: =IFERROR(VLOOKUP(ROW($A21),БДМ№1!$A$5:$D$108,COLUMN(),0),"") -> 
A27: =IF(C27<>"",MAX($A$6:A26)+1,"") ->  | B27: =IFERROR(VLOOKUP(C27,Список!$B$2:$C$149,2,0),"") ->  | C27: =IFERROR(VLOOKUP(ROW($A22),БДМ№1!$A$5:$D$108,COLUMN(),0),"") ->  | D27: =IFERROR(VLOOKUP(ROW($A22),БДМ№1!$A$5:$D$108,COLUMN(),0),"") -> 
A28: =IF(C28<>"",MAX($A$6:A27)+1,"") ->  | B28: =IFERROR(VLOOKUP(C28,Список!$B$2:$C$149,2,0),"") ->  | C28: =IFERROR(VLOOKUP(ROW($A23),БДМ№1!$A$5:$D$108,COLUMN(),0),"") ->  | D28: =IFERROR(VLOOKUP(ROW($A23),БДМ№1!$A$5:$D$108,COLUMN(),0),"") -> 
A29: =IF(C29<>"",MAX($A$6:A28)+1,"") ->  | B29: =IFERROR(VLOOKUP(C29,Список!$B$2:$C$149,2,0),"") ->  | C29: =IFERROR(VLOOKUP(ROW($A24),БДМ№1!$A$5:$D$108,COLUMN(),0),"") ->  | D29: =IFERROR(VLOOKUP(ROW($A24),БДМ№1!$A$5:$D$108,COLUMN(),0),"") -> 
A30: =IF(C30<>"",MAX($A$6:A29)+1,"") ->  | B30: =IFERROR(VLOOKUP(C30,Список!$B$2:$C$149,2,0),"") ->  | C30: =IFERROR(VLOOKUP(ROW($A25),БДМ№1!$A$5:$D$108,COLUMN(),0),"") ->  | D30: =IFERROR(VLOOKUP(ROW($A25),БДМ№1!$A$5:$D$108,COLUMN(),0),"") -> 
A31: =IF(C31<>"",MAX($A$6:A30)+1,"") ->  | B31: =IFERROR(VLOOKUP(C31,Список!$B$2:$C$149,2,0),"") ->  | C31: =IFERROR(VLOOKUP(ROW($A26),БДМ№1!$A$5:$D$108,COLUMN(),0),"") ->  | D31: =IFERROR(VLOOKUP(ROW($A26),БДМ№1!$A$5:$D$108,COLUMN(),0),"") -> 
A32: =IF(C32<>"",MAX($A$6:A31)+1,"") -> 17 | B32: =IFERROR(VLOOKUP(C32,Список!$B$2:$C$149,2,0),"") -> 589 | C32: Хомич Н.Н. | D32: Мастер смены
A33: =IF(C33<>"",MAX($A$6:A32)+1,"") -> 18 | B33: =IFERROR(VLOOKUP(C33,Список!$B$2:$C$149,2,0),"") -> 465 | C33: Рудницкий С.Н. | D33: Тран.мат-ов
A34: =IF(C34<>"",MAX($A$6:A33)+1,"") -> 19 | B34: =IFERROR(VLOOKUP(C34,Список!$B$2:$C$149,2,0),"") -> 531 | C34: Бушкина Т.П. | D34: Уб.пом-й (произв.)
A35: =IF(C35<>"",MAX($A$6:A34)+1,"") -> 20 | B35: =IFERROR(VLOOKUP(C35,Список!$B$2:$C$149,2,0),"") -> 1677 | C35: Мишук А.В. | D35: Оклад
A36: =IF(C36<>"",MAX($A$6:A35)+1,"") -> 21 | B36: =IFERROR(VLOOKUP(C36,Список!$B$2:$C$149,2,0),"") -> 1693 | C36: Мурашко В.Г. | D36: Тран.мат-ов
A37: =IF(C37<>"",MAX($A$6:A36)+1,"") -> 22 | B37: =IFERROR(VLOOKUP(C37,Список!$B$2:$C$149,2,0),"") -> 1499 | C37: Гридюшко П.А. | D37: Оклад
A38: =IF(C38<>"",MAX($A$6:A37)+1,"") -> 23 | B38: =IFERROR(VLOOKUP(C38,Список!$B$2:$C$149,2,0),"") -> 1291 | C38: Лысковец А.Н. | D38: Тран.мат-ов
A39: =IF(C39<>"",MAX($A$6:A38)+1,"") -> 24 | B39: =IFERROR(VLOOKUP(C39,Список!$B$2:$C$149,2,0),"") -> 1503 | C39: Мороз А.П. | D39: Сушильщик 4 р.
A40: =IF(C40<>"",MAX($A$6:A39)+1,"") -> 25 | B40: =IFERROR(VLOOKUP(C40,Список!$B$2:$C$149,2,0),"") -> 1649 | C40: Скачек А.В.
A41: =IF(C41<>"",MAX($A$6:A40)+1,"") -> 26 | B41: =IFERROR(VLOOKUP(C41,Список!$B$2:$C$149,2,0),"") -> 589 | C41: Хомич Н.Н.
A42: =IF(C42<>"",MAX($A$6:A41)+1,"") ->  | B42: =IFERROR(VLOOKUP(C42,Список!$B$2:$C$149,2,0),"") -> 
A43: =IF(C43<>"",MAX($A$6:A42)+1,"") ->  | B43: =IFERROR(VLOOKUP(C43,Список!$B$2:$C$149,2,0),"") -> 
A44: =IF(C44<>"",MAX($A$6:A43)+1,"") ->  | B44: =IFERROR(VLOOKUP(C44,Список!$B$2:$C$149,2,0),"") -> 
A45: =IF(C45<>"",MAX($A$6:A44)+1,"") ->  | B45: =IFERROR(VLOOKUP(C45,Список!$B$2:$C$149,2,0),"") -> 
A46: =IF(C46<>"",MAX($A$6:A45)+1,"") ->  | B46: =IFERROR(VLOOKUP(C46,Список!$B$2:$C$149,2,0),"") -> 
A47: =IF(C47<>"",MAX($A$6:A46)+1,"") ->  | B47: =IFERROR(VLOOKUP(C47,Список!$B$2:$C$149,2,0),"") -> 
A48: =IF(C48<>"",MAX($A$6:A47)+1,"") ->  | B48: =IFERROR(VLOOKUP(C48,Список!$B$2:$C$149,2,0),"") -> 
A49: =IF(C49<>"",MAX($A$6:A48)+1,"") ->  | B49: =IFERROR(VLOOKUP(C49,Список!$B$2:$C$149,2,0),"") -> 
A50: =IF(C50<>"",MAX($A$6:A49)+1,"") ->  | B50: =IFERROR(VLOOKUP(C50,Список!$B$2:$C$149,2,0),"") -> 
A51: =IF(C51<>"",MAX($A$6:A50)+1,"") ->  | B51: =IFERROR(VLOOKUP(C51,Список!$B$2:$C$149,2,0),"") -> 
A52: =IF(C52<>"",MAX($A$6:A51)+1,"") ->  | B52: =IFERROR(VLOOKUP(C52,Список!$B$2:$C$149,2,0),"") ->  | C52: =IFERROR(VLOOKUP(ROW($A1),#REF!,COLUMN(),0),"") ->  | D52: =IFERROR(VLOOKUP(ROW($A1),#REF!,COLUMN(),0),"") -> 
A53: =IF(C53<>"",MAX($A$6:A52)+1,"") ->  | B53: =IFERROR(VLOOKUP(C53,Список!$B$2:$C$149,2,0),"") ->  | C53: =IFERROR(VLOOKUP(ROW($A2),#REF!,COLUMN(),0),"") ->  | D53: =IFERROR(VLOOKUP(ROW($A2),#REF!,COLUMN(),0),"") -> 
A54: =IF(C54<>"",MAX($A$6:A53)+1,"") ->  | B54: =IFERROR(VLOOKUP(C54,Список!$B$2:$C$149,2,0),"") ->  | C54: =IFERROR(VLOOKUP(ROW($A3),#REF!,COLUMN(),0),"") ->  | D54: =IFERROR(VLOOKUP(ROW($A3),#REF!,COLUMN(),0),"") -> 
A55: =IF(C55<>"",MAX($A$6:A54)+1,"") ->  | B55: =IFERROR(VLOOKUP(C55,Список!$B$2:$C$149,2,0),"") ->  | C55: =IFERROR(VLOOKUP(ROW($A4),#REF!,COLUMN(),0),"") ->  | D55: =IFERROR(VLOOKUP(ROW($A4),#REF!,COLUMN(),0),"") -> 
A56: =IF(C56<>"",MAX($A$6:A55)+1,"") ->  | B56: =IFERROR(VLOOKUP(C56,Список!$B$2:$C$149,2,0),"") ->  | C56: =IFERROR(VLOOKUP(ROW($A5),#REF!,COLUMN(),0),"") ->  | D56: =IFERROR(VLOOKUP(ROW($A5),#REF!,COLUMN(),0),"") -> 
A57: =IF(C57<>"",MAX($A$6:A56)+1,"") ->  | B57: =IFERROR(VLOOKUP(C57,Список!$B$2:$C$149,2,0),"") ->  | C57: =IFERROR(VLOOKUP(ROW($A6),#REF!,COLUMN(),0),"") ->  | D57: =IFERROR(VLOOKUP(ROW($A6),#REF!,COLUMN(),0),"") -> 
A58: =IF(C58<>"",MAX($A$6:A57)+1,"") ->  | B58: =IFERROR(VLOOKUP(C58,Список!$B$2:$C$149,2,0),"") ->  | C58: =IFERROR(VLOOKUP(ROW($A7),#REF!,COLUMN(),0),"") ->  | D58: =IFERROR(VLOOKUP(ROW($A7),#REF!,COLUMN(),0),"") -> 
A59: =IF(C59<>"",MAX($A$6:A58)+1,"") ->  | B59: =IFERROR(VLOOKUP(C59,Список!$B$2:$C$149,2,0),"") ->  | C59: =IFERROR(VLOOKUP(ROW($A8),#REF!,COLUMN(),0),"") ->  | D59: =IFERROR(VLOOKUP(ROW($A8),#REF!,COLUMN(),0),"") -> 
A60: =IF(C60<>"",MAX($A$6:A59)+1,"") ->  | B60: =IFERROR(VLOOKUP(C60,Список!$B$2:$C$149,2,0),"") ->  | C60: =IFERROR(VLOOKUP(ROW($A9),#REF!,COLUMN(),0),"") ->  | D60: =IFERROR(VLOOKUP(ROW($A9),#REF!,COLUMN(),0),"") -> 
A61: =IF(C61<>"",MAX($A$6:A60)+1,"") ->  | B61: =IFERROR(VLOOKUP(C61,Список!$B$2:$C$149,2,0),"") ->  | C61: =IFERROR(VLOOKUP(ROW($A10),#REF!,COLUMN(),0),"") ->  | D61: =IFERROR(VLOOKUP(ROW($A10),#REF!,COLUMN(),0),"") -> 
A62: =IF(C62<>"",MAX($A$6:A61)+1,"") ->  | B62: =IFERROR(VLOOKUP(C62,Список!$B$2:$C$149,2,0),"") ->  | C62: =IFERROR(VLOOKUP(ROW($A11),#REF!,COLUMN(),0),"") ->  | D62: =IFERROR(VLOOKUP(ROW($A11),#REF!,COLUMN(),0),"") -> 
A63: =IF(C63<>"",MAX($A$6:A62)+1,"") -> 
A64: =IF(C64<>"",MAX($A$6:A63)+1,"") -> 
A65: =IF(C65<>"",MAX($A$6:A64)+1,"") -> 
A66: =IF(C66<>"",MAX($A$6:A65)+1,"") -> 

Sheet Список (hidden)
A1: № | B1: ФИО | C1: Таб.№ | D1: Конт-т | E1: Кол.дог. | F1: Проф.м. | G1: За рук.бриг. | H1: За сложн. | I1: Тариф.коэфф-т | J1: Надб.за стаж, % | K1: Профессия | L1: Час.т.ставка | M1: Знаки | N1: Месяц | O1: Мастера смен | P1: Наряды | Q1: Расценка за ед. | R1: Праздники | T1: Ед.изм | U1: Прочее
A2: 1 | B2: Агеева Е.В. | C2: =IF($B2="Агеева Е.В.",1686) -> 1686 | D2: =IF($B2="Агеева Е.В.",50) -> 50 | E2: =IF($B2="Агеева Е.В.",0) -> 0 | F2: =IF($B2="Агеева Е.В.",0) -> 0 | G2: =IF($B2="Агеева Е.В.",0) -> 0 | H2: =IF($B2="Агеева Е.В.",0) -> 0 | I2: =IF($B2="Агеева Е.В.",1.35) -> 1.35 | J2: =IF($B2="Агеева Е.В.",0) -> 0 | K2: Ап.пр.хим.р-в 3 р. | L2: =IF(K2="Ап.пр.хим.р-в 3 р.",6029) -> 6029 | M2: 1 | N2: =DATE(YEAR(TODAY()),MONTH(1),1) -> 2015-01-01 | O2: сгущеной целлюлозы (промежуточный) | P2: в том числе связывание канатика | Q2: =IF(P2="в том числе связывание канатика",16309) -> 16309 | R2: 2015-01-07 | S2: Добавить / удалить фамилию | T2: Кг | U2: БДМ № 1
A3: 2 | B3: Адамюк Е.В. | C3: =IF($B3="Адамюк Е.В.",2102) -> 2102 | D3: =IF($B3="Адамюк Е.В.",50) -> 50 | E3: =IF($B3="Адамюк Е.В.",0) -> 0 | F3: =IF($B3="Адамюк Е.В.",0) -> 0 | G3: =IF($B3="Адамюк Е.В.",0) -> 0 | H3: =IF($B3="Адамюк Е.В.",0) -> 0 | I3: =IF($B3="Адамюк Е.В.",1.16) -> 1.16 | J3: =IF($B3="Адамюк Е.В.",0) -> 0 | K3: Ап.пр.хим.р-в 3 р. % | L3: =IF(K3="Ап.пр.хим.р-в 3 р. %",6029) -> 6029 | M3: 2 | N3: =DATE(YEAR(TODAY()),MONTH(N2)+1,1) -> 2015-02-01 | O3: см. Буйко В.Г. | P3: глинозёма | Q3: =IF(P3="глинозёма",21924) -> 21924 | R3: 2015-03-08 | S3: Добавить / удалить профессию | T3: Т | U3: БДМ № 2
A4: 3 | B4: Амосова Т.Ф. | C4: =IF($B4="Амосова Т.Ф.",342) -> 342 | D4: =IF($B4="Амосова Т.Ф.",50) -> 50 | E4: =IF($B4="Амосова Т.Ф.",0) -> 0 | F4: =IF($B4="Амосова Т.Ф.",0) -> 0 | G4: =IF($B4="Амосова Т.Ф.",0) -> 0 | H4: =IF($B4="Амосова Т.Ф.",0) -> 0 | I4: =IF($B4="Амосова Т.Ф.",1.16) -> 1.16 | J4: =IF($B4="Амосова Т.Ф.",15) -> 15 | K4: Каландровщик 3 р. | L4: =IF(K4="Каландровщик 3 р.",0) -> 0 | M4: 3 | N4: =DATE(YEAR(TODAY()),MONTH(N3)+1,1) -> 2015-03-01 | O4: см. Булавский А.В. | P4: избыточной воды | Q4: =IF(P4="избыточной воды",43026) -> 43026 | R4: 2015-04-21 | S4: Добавить / удалить наряд | T4: Шт | U4: Бумажный цех
A5: 4 | B5: Аниськович А.П. | C5: =IF($B5="Аниськович А.П.",1339) -> 1339 | D5: =IF($B5="Аниськович А.П.",50) -> 50 | E5: =IF($B5="Аниськович А.П.",10) -> 10 | F5: =IF($B5="Аниськович А.П.",0) -> 0 | G5: =IF($B5="Аниськович А.П.",0) -> 0 | H5: =IF($B5="Аниськович А.П.",0) -> 0 | I5: =IF($B5="Аниськович А.П.",1.35) -> 1.35 | J5: =IF($B5="Аниськович А.П.",5) -> 5 | K5: Каландровщик 3 р. % | L5: =IF(K5="Каландровщик 3 р. %",0) -> 0 | M5: 4 | N5: 2015-04-01 | O5: см. Кузьбар И.Н. | P5: композиционного | Q5: =IF(P5="композиционного",32283) -> 32283 | R5: 2015-05-01 | S5: Добавить / удалить знаки | U5: Останов БДМ
A6: 5 | B6: Апет И.В. | C6: =IF($B6="Апет И.В.",2234) -> 2234 | D6: =IF($B6="Апет И.В.",50) -> 50 | E6: =IF($B6="Апет И.В.",10) -> 10 | F6: =IF($B6="Апет И.В.",0) -> 0 | G6: =IF($B6="Апет И.В.",0) -> 0 | H6: =IF($B6="Апет И.В.",0) -> 0 | I6: =IF($B6="Апет И.В.",1.35) -> 1.35 | J6: =IF($B6="Апет И.В.",10) -> 10 | K6: Каландровщик 4 р. | L6: =IF(K6="Каландровщик 4 р.",0) -> 0 | M6: 5 | N6: 2015-05-01 | O6: см. Сандульская Л.А. | P6: машинного | Q6: =IF(P6="машинного",43026) -> 43026 | R6: 2015-05-09 | S6: Добавить / удалить праздники
A7: 6 | B7: Богодяж Т.А. | C7: =IF($B7="Богодяж Т.А.",1609) -> 1609 | D7: =IF($B7="Богодяж Т.А.",50) -> 50 | E7: =IF($B7="Богодяж Т.А.",0) -> 0 | F7: =IF($B7="Богодяж Т.А.",0) -> 0 | G7: =IF($B7="Богодяж Т.А.",0) -> 0 | H7: =IF($B7="Богодяж Т.А.",0) -> 0 | I7: =IF($B7="Богодяж Т.А.",1.16) -> 1.16 | J7: =IF($B7="Богодяж Т.А.",0) -> 0 | K7: Кладовщик | L7: =IF(K7="Кладовщик",6374) -> 6374 | M7: 6 | N7: 2015-06-01 | O7: см. Хомич Н.Н. | P7: мела (каолины) | Q7: =IF(P7="мела (каолины)",21924) -> 21924 | R7: 2015-07-03 | S7: Добавить / удалить ед.измерения
A8: 7 | B8: Брикун М.А. | C8: =IF($B8="Брикун М.А.",1179) -> 1179 | D8: =IF($B8="Брикун М.А.",50) -> 50 | E8: =IF($B8="Брикун М.А.",30) -> 30 | F8: =IF($B8="Брикун М.А.",16) -> 16 | G8: =IF($B8="Брикун М.А.",0) -> 0 | H8: =IF($B8="Брикун М.А.",0) -> 0 | I8: =IF($B8="Брикун М.А.",1.57) -> 1.57 | J8: =IF($B8="Брикун М.А.",10) -> 10 | K8: Мастер смены | L8: =IF(K8="Мастер смены",2224823) -> 2224823 | M8: 7 | N8: 2015-07-01 | P8: металлического | Q8: =IF(P8="металлического",32283) -> 32283 | R8: 2015-11-07 | S8: Добавить / удалить прочее
A9: 8 | B9: Буйко В.Г. | C9: =IF($B9="Буйко В.Г.",1241) -> 1241 | D9: =IF($B9="Буйко В.Г.",50) -> 50 | E9: =IF($B9="Буйко В.Г.",40) -> 40 | F9: =IF($B9="Буйко В.Г.",0) -> 0 | G9: =IF($B9="Буйко В.Г.",0) -> 0 | H9: =IF($B9="Буйко В.Г.",40) -> 40 | I9: =IF($B9="Буйко В.Г.",0) -> 0 | J9: =IF($B9="Буйко В.Г.",10) -> 10 | K9: Маш.уп. маш. 2 р. | L9: =IF(K9="Маш.уп. маш. 2 р.",5181) -> 5181 | M9: 8 | N9: 2015-08-01 | P9: оборотного брака | Q9: =IF(P9="оборотного брака",32283) -> 32283 | R9: 2015-11-07
A10: 9 | B10: Булавский А.В. | C10: =IF($B10="Булавский А.В.",1515) -> 1515 | D10: =IF($B10="Булавский А.В.",50) -> 50 | E10: =IF($B10="Булавский А.В.",40) -> 40 | F10: =IF($B10="Булавский А.В.",0) -> 0 | G10: =IF($B10="Булавский А.В.",0) -> 0 | H10: =IF($B10="Булавский А.В.",40) -> 40 | I10: =IF($B10="Булавский А.В.",0) -> 0 | J10: =IF($B10="Булавский А.В.",5) -> 5 | K10: Маш.уп. маш. 2 р. % | L10: =IF(K10="Маш.уп. маш. 2 р. %",5181) -> 5181 | M10: 9 | N10: 2015-09-01 | P10: оборотной воды | Q10: =IF(P10="оборотной воды",21924) -> 21924 | R10: 2015-12-25
A11: 10 | B11: Буракова Т.А. | C11: =IF($B11="Буракова Т.А.",643) -> 643 | D11: =IF($B11="Буракова Т.А.",50) -> 50 | E11: =IF($B11="Буракова Т.А.",50) -> 50 | F11: =IF($B11="Буракова Т.А.",12) -> 12 | G11: =IF($B11="Буракова Т.А.",0) -> 0 | H11: =IF($B11="Буракова Т.А.",0) -> 0 | I11: =IF($B11="Буракова Т.А.",1.35) -> 1.35 | J11: =IF($B11="Буракова Т.А.",15) -> 15 | K11: Машинист 6 р. | L11: =IF(K11="Машинист 6 р.",8486) -> 8486 | M11: 10 | N11: 2015-10-01 | P11: осветлённой воды | Q11: =IF(P11="осветлённой воды",21924) -> 21924 | R11: 2016-01-01
A12: 11 | B12: Бурдыко Е.А. | C12: =IF($B12="Бурдыко Е.А.",2269) -> 2269 | D12: =IF($B12="Бурдыко Е.А.",50) -> 50 | E12: =IF($B12="Бурдыко Е.А.",0) -> 0 | F12: =IF($B12="Бурдыко Е.А.",0) -> 0 | G12: =IF($B12="Бурдыко Е.А.",0) -> 0 | H12: =IF($B12="Бурдыко Е.А.",0) -> 0 | I12: =IF($B12="Бурдыко Е.А.",1.73) -> 1.73 | J12: =IF($B12="Бурдыко Е.А.",10) -> 10 | K12: Накатчик 3 р. | L12: =IF(K12="Накатчик 3 р.",6029) -> 6029 | M12: 11 | N12: 2015-11-01 | P12: П-1 | R12: 2016-01-07
A13: 12 | B13: Бурыхин С.А. | C13: =IF($B13="Бурыхин С.А.",1501) -> 1501 | D13: =IF($B13="Бурыхин С.А.",50) -> 50 | E13: =IF($B13="Бурыхин С.А.",10) -> 10 | F13: =IF($B13="Бурыхин С.А.",0) -> 0 | G13: =IF($B13="Бурыхин С.А.",0) -> 0 | H13: =IF($B13="Бурыхин С.А.",0) -> 0 | I13: =IF($B13="Бурыхин С.А.",1.35) -> 1.35 | J13: =IF($B13="Бурыхин С.А.",5) -> 5 | K13: Накатчик 3 р. % | L13: =IF(K13="Накатчик 3 р. %",6029) -> 6029 | M13: 12 | N13: 2015-12-01 | P13: П-2 | R13: 2016-03-08
A14: 13 | B14: Буслов А.А. | C14: =IF($B14="Буслов А.А.",2150) -> 2150 | D14: =IF($B14="Буслов А.А.",50) -> 50 | E14: =IF($B14="Буслов А.А.",10) -> 10 | F14: =IF($B14="Буслов А.А.",0) -> 0 | G14: =IF($B14="Буслов А.А.",0) -> 0 | H14: =IF($B14="Буслов А.А.",0) -> 0 | I14: =IF($B14="Буслов А.А.",1.57) -> 1.57 | J14: =IF($B14="Буслов А.А.",10) -> 10 | K14: Оклад | L14: =IF(K14="Оклад",2669788) -> 2669788 | M14: 1' | P14: П-3 | R14: 2016-04-21
A15: 14 | B15: Бушкин В.Д. | C15: =IF($B15="Бушкин В.Д.",1430) -> 1430 | D15: =IF($B15="Бушкин В.Д.",50) -> 50 | E15: =IF($B15="Бушкин В.Д.",20) -> 20 | F15: =IF($B15="Бушкин В.Д.",0) -> 0 | G15: =IF($B15="Бушкин В.Д.",0) -> 0 | H15: =IF($B15="Бушкин В.Д.",0) -> 0 | I15: =IF($B15="Бушкин В.Д.",1.57) -> 1.57 | J15: =IF($B15="Бушкин В.Д.",5) -> 5 | K15: Оп.очист.оборуд. | L15: =IF(K15="Оп.очист.оборуд.",6029) -> 6029 | M15: 10' | P15: П-4 | R15: 2016-05-01
A16: 15 | B16: Бушкина Т.П. | C16: =IF($B16="Бушкина Т.П.",531) -> 531 | D16: =IF($B16="Бушкина Т.П.",50) -> 50 | E16: =IF($B16="Бушкина Т.П.",0) -> 0 | F16: =IF($B16="Бушкина Т.П.",0) -> 0 | G16: =IF($B16="Бушкина Т.П.",0) -> 0 | H16: =IF($B16="Бушкина Т.П.",0) -> 0 | I16: =IF($B16="Бушкина Т.П.",1.16) -> 1.16 | J16: =IF($B16="Бушкина Т.П.",20) -> 20 | K16: Перссовщик 3 р. | L16: =IF(K16="Перссовщик 3 р.",6029) -> 6029 | M16: 11' | P16: Переупаковка ролевой бумаги | Q16: =IF(P16="Переупаковка ролевой бумаги",7536) -> 7536 | R16: 2016-05-09
A17: 16 | B17: Буяновская В.П. | C17: =IF($B17="Буяновская В.П.",489) -> 489 | D17: =IF($B17="Буяновская В.П.",50) -> 50 | E17: =IF($B17="Буяновская В.П.",10) -> 10 | F17: =IF($B17="Буяновская В.П.",0) -> 0 | G17: =IF($B17="Буяновская В.П.",0) -> 0 | H17: =IF($B17="Буяновская В.П.",0) -> 0 | I17: =IF($B17="Буяновская В.П.",1.57) -> 1.57 | J17: =IF($B17="Буяновская В.П.",20) -> 20 | K17: Перссовщик 3 р. % | L17: =IF(K17="Перссовщик 3 р. %",6029) -> 6029 | M17: 12' | P17: приёмного | Q17: =IF(P17="приёмного",32283) -> 32283 | R17: 2016-07-03
A18: 17 | B18: Ваньков С.П. | C18: =IF($B18="Ваньков С.П.",115) -> 115 | D18: =IF($B18="Ваньков С.П.",50) -> 50 | E18: =IF($B18="Ваньков С.П.",85) -> 85 | F18: =IF($B18="Ваньков С.П.",0) -> 0 | G18: =IF($B18="Ваньков С.П.",0) -> 0 | H18: =IF($B18="Ваньков С.П.",0) -> 0 | I18: =IF($B18="Ваньков С.П.",1.35) -> 1.35 | J18: =IF($B18="Ваньков С.П.",10) -> 10 | K18: Разм. брака 2 р. | L18: =IF(K18="Разм. брака 2 р.",4710) -> 4710 | M18: 2' | P18: размольного | Q18: =IF(P18="размольного",32283) -> 32283
A19: 18 | B19: Ванькова Л.Е. | C19: =IF($B19="Ванькова Л.Е.",365) -> 365 | D19: =IF($B19="Ванькова Л.Е.",50) -> 50 | E19: =IF($B19="Ванькова Л.Е.",20) -> 20 | F19: =IF($B19="Ванькова Л.Е.",0) -> 0 | G19: =IF($B19="Ванькова Л.Е.",0) -> 0 | H19: =IF($B19="Ванькова Л.Е.",0) -> 0 | I19: =IF($B19="Ванькова Л.Е.",1.16) -> 1.16 | J19: =IF($B19="Ванькова Л.Е.",20) -> 20 | K19: Разм. брака 2 р. % | L19: =IF(K19="Разм. брака 2 р. %",4710) -> 4710 | M19: 3' | P19: регистровой воды | Q19: =IF(P19="регистровой воды",21924) -> 21924
A20: 19 | B20: Васильева О.А. | C20: =IF($B20="Васильева О.А.",1560) -> 1560 | D20: =IF($B20="Васильева О.А.",50) -> 50 | E20: =IF($B20="Васильева О.А.",10) -> 10 | F20: =IF($B20="Васильева О.А.",0) -> 0 | G20: =IF($B20="Васильева О.А.",0) -> 0 | H20: =IF($B20="Васильева О.А.",0) -> 0 | I20: =IF($B20="Васильева О.А.",1.16) -> 1.16 | J20: =IF($B20="Васильева О.А.",5) -> 5 | K20: Разм. ГРВ 3 р. | L20: =IF(K20="Разм. ГРВ 3 р.",6029) -> 6029 | M20: 4' | P20: Резка и упаковка ленты бумажной для плоттеров 70 г/м2, ф. 1000 мм | Q20: =IF(P20="Резка и упаковка ленты бумажной для плоттеров 70 г/м2, ф. 1000 мм",4874) -> 4874
A21: 20 | B21: Волегов А.Г. | C21: =IF($B21="Волегов А.Г.",208) -> 208 | D21: =IF($B21="Волегов А.Г.",50) -> 50 | E21: =IF($B21="Волегов А.Г.",10) -> 10 | F21: =IF($B21="Волегов А.Г.",24) -> 24 | G21: =IF($B21="Волегов А.Г.",10) -> 10 | H21: =IF($B21="Волегов А.Г.",0) -> 0 | I21: =IF($B21="Волегов А.Г.",1.9) -> 1.9 | J21: =IF($B21="Волегов А.Г.",20) -> 20 | K21: Разм. ПО 3 р. | L21: =IF(K21="Разм. ПО 3 р.",6029) -> 6029 | M21: 5' | P21: Резка и упаковка ленты бумажной для плоттеров 70 г/м2, ф. 1500 мм | Q21: =IF(P21="Резка и упаковка ленты бумажной для плоттеров 70 г/м2, ф. 1500 мм",8356) -> 8356
A22: 21 | B22: Волегова Г.И. | C22: =IF($B22="Волегова Г.И.",707) -> 707 | D22: =IF($B22="Волегова Г.И.",50) -> 50 | E22: =IF($B22="Волегова Г.И.",10) -> 10 | F22: =IF($B22="Волегова Г.И.",0) -> 0 | G22: =IF($B22="Волегова Г.И.",0) -> 0 | H22: =IF($B22="Волегова Г.И.",0) -> 0 | I22: =IF($B22="Волегова Г.И.",1.16) -> 1.16 | J22: =IF($B22="Волегова Г.И.",20) -> 20 | K22: Разм. ПО 3 р. % | L22: =IF(K22="Разм. ПО 3 р. %",6029) -> 6029 | M22: 6' | P22: Резка и упаковка ленты бумажной для плоттеров 70 г/м2, ф. 1510 мм | Q22: =IF(P22="Резка и упаковка ленты бумажной для плоттеров 70 г/м2, ф. 1510 мм",8356) -> 8356
A23: 22 | B23: Воронцевич М.П. | C23: =IF($B23="Воронцевич М.П.",298) -> 298 | D23: =IF($B23="Воронцевич М.П.",50) -> 50 | E23: =IF($B23="Воронцевич М.П.",20) -> 20 | F23: =IF($B23="Воронцевич М.П.",0) -> 0 | G23: =IF($B23="Воронцевич М.П.",0) -> 0 | H23: =IF($B23="Воронцевич М.П.",0) -> 0 | I23: =IF($B23="Воронцевич М.П.",1.35) -> 1.35 | J23: =IF($B23="Воронцевич М.П.",15) -> 15 | K23: Разм. РПО 3 р. | L23: =IF(K23="Разм. РПО 3 р.",6029) -> 6029 | M23: 7' | P23: Резка и упаковка ленты бумажной для плоттеров 70 г/м2, ф. 1600 мм | Q23: =IF(P23="Резка и упаковка ленты бумажной для плоттеров 70 г/м2, ф. 1600 мм",8356) -> 8356
A24: 23 | B24: Гарбузов Г.Л. | C24: =IF($B24="Гарбузов Г.Л.",381) -> 381 | D24: =IF($B24="Гарбузов Г.Л.",50) -> 50 | E24: =IF($B24="Гарбузов Г.Л.",60) -> 60 | F24: =IF($B24="Гарбузов Г.Л.",0) -> 0 | G24: =IF($B24="Гарбузов Г.Л.",0) -> 0 | H24: =IF($B24="Гарбузов Г.Л.",0) -> 0 | I24: =IF($B24="Гарбузов Г.Л.",1.35) -> 1.35 | J24: =IF($B24="Гарбузов Г.Л.",10) -> 10 | K24: Разм. РПО 3 р. % | L24: =IF(K24="Разм. РПО 3 р. %",6029) -> 6029 | M24: 8' | P24: Резка и упаковка ленты бумажной для плоттеров 70 г/м2, ф. 1680 мм | Q24: =IF(P24="Резка и упаковка ленты бумажной для плоттеров 70 г/м2, ф. 1680 мм",8356) -> 8356
A25: 24 | B25: Гвоздь М.П. | C25: =IF($B25="Гвоздь М.П.",561) -> 561 | D25: =IF($B25="Гвоздь М.П.",50) -> 50 | E25: =IF($B25="Гвоздь М.П.",0) -> 0 | F25: =IF($B25="Гвоздь М.П.",0) -> 0 | G25: =IF($B25="Гвоздь М.П.",0) -> 0 | H25: =IF($B25="Гвоздь М.П.",0) -> 0 | I25: =IF($B25="Гвоздь М.П.",1.57) -> 1.57 | J25: =IF($B25="Гвоздь М.П.",20) -> 20 | K25: Разм. РПО 4 р. | L25: =IF(K25="Разм. РПО 4 р.",7012) -> 7012 | M25: 9' | P25: Резка и упаковка ленты бумажной для плоттеров 70 г/м2, ф. 1800 мм | Q25: =IF(P25="Резка и упаковка ленты бумажной для плоттеров 70 г/м2, ф. 1800 мм",8356) -> 8356
A26: 25 | B26: Гендик Н.В. | C26: =IF($B26="Гендик Н.В.",552) -> 552 | D26: =IF($B26="Гендик Н.В.",50) -> 50 | E26: =IF($B26="Гендик Н.В.",30) -> 30 | F26: =IF($B26="Гендик Н.В.",0) -> 0 | G26: =IF($B26="Гендик Н.В.",0) -> 0 | H26: =IF($B26="Гендик Н.В.",0) -> 0 | I26: =IF($B26="Гендик Н.В.",1.35) -> 1.35 | J26: =IF($B26="Гендик Н.В.",20) -> 20 | K26: Разм. РПО 4 р. % | L26: =IF(K26="Разм. РПО 4 р. %",7012) -> 7012 | M26: А | P26: Резка и упаковка ленты бумажной для плоттеров 70 г/м2, ф. 1900 мм | Q26: =IF(P26="Резка и упаковка ленты бумажной для плоттеров 70 г/м2, ф. 1900 мм",8356) -> 8356
A27: 26 | B27: Гончарук А.В. | C27: =IF($B27="Гончарук А.В.",652) -> 652 | D27: =IF($B27="Гончарук А.В.",50) -> 50 | E27: =IF($B27="Гончарук А.В.",0) -> 0 | F27: =IF($B27="Гончарук А.В.",0) -> 0 | G27: =IF($B27="Гончарук А.В.",0) -> 0 | H27: =IF($B27="Гончарук А.В.",0) -> 0 | I27: =IF($B27="Гончарук А.В.",1.35) -> 1.35 | J27: =IF($B27="Гончарук А.В.",0) -> 0 | K27: Разм. РПО 5 р. | L27: =IF(K27="Разм. РПО 5 р.",7726) -> 7726 | M27: Б | P27: Резка и упаковка ленты бумажной для плоттеров 70 г/м2, ф. 2000 мм | Q27: =IF(P27="Резка и упаковка ленты бумажной для плоттеров 70 г/м2, ф. 2000 мм",8356) -> 8356
A28: 27 | B28: Гончарук Т.И. | C28: =IF($B28="Гончарук Т.И.",479) -> 479 | D28: =IF($B28="Гончарук Т.И.",50) -> 50 | E28: =IF($B28="Гончарук Т.И.",30) -> 30 | F28: =IF($B28="Гончарук Т.И.",0) -> 0 | G28: =IF($B28="Гончарук Т.И.",0) -> 0 | H28: =IF($B28="Гончарук Т.И.",0) -> 0 | I28: =IF($B28="Гончарук Т.И.",1.35) -> 1.35 | J28: =IF($B28="Гончарук Т.И.",20) -> 20 | K28: Резчик 2БП-120У | L28: =IF(K28="Резчик 2БП-120У",0) -> 0 | M28: В | P28: Резка и упаковка ленты бумажной для плоттеров 70 г/м2, ф. 2200 мм | Q28: =IF(P28="Резка и упаковка ленты бумажной для плоттеров 70 г/м2, ф. 2200 мм",8356) -> 8356
A29: 28 | B29: Гридюшко П.А. | C29: =IF($B29="Гридюшко П.А.",1499) -> 1499 | D29: =IF($B29="Гридюшко П.А.",50) -> 50 | E29: =IF($B29="Гридюшко П.А.",10) -> 10 | F29: =IF($B29="Гридюшко П.А.",0) -> 0 | G29: =IF($B29="Гридюшко П.А.",0) -> 0 | H29: =IF($B29="Гридюшко П.А.",0) -> 0 | I29: =IF($B29="Гридюшко П.А.",1.35) -> 1.35 | J29: =IF($B29="Гридюшко П.А.",5) -> 5 | K29: Резчик кратона | L29: =IF(K29="Резчик кратона",7012) -> 7012 | M29: Г | P29: Резка и упаковка ленты бумажной для плоттеров 70 г/м2, ф. 420 мм | Q29: =IF(P29="Резка и упаковка ленты бумажной для плоттеров 70 г/м2, ф. 420 мм",8356) -> 8356
A30: 29 | B30: Грузд Н.Н. | C30: =IF($B30="Грузд Н.Н.",1311) -> 1311 | D30: =IF($B30="Грузд Н.Н.",50) -> 50 | E30: =IF($B30="Грузд Н.Н.",0) -> 0 | F30: =IF($B30="Грузд Н.Н.",0) -> 0 | G30: =IF($B30="Грузд Н.Н.",0) -> 0 | H30: =IF($B30="Грузд Н.Н.",0) -> 0 | I30: =IF($B30="Грузд Н.Н.",1.35) -> 1.35 | J30: =IF($B30="Грузд Н.Н.",5) -> 5 | K30: Резчик ПРС 3 р. | L30: =IF(K30="Резчик ПРС 3 р.",5481) -> 5481 | M30: Д | P30: Резка и упаковка ленты бумажной для плоттеров 70 г/м2, ф. 620 мм | Q30: =IF(P30="Резка и упаковка ленты бумажной для плоттеров 70 г/м2, ф. 620 мм",8356) -> 8356
A31: 30 | B31: Губич Ю.В. | C31: =IF($B31="","") -> FALSE | D31: FALSE | E31: FALSE | F31: FALSE | G31: FALSE | H31: FALSE | I31: FALSE | J31: =IF(I31="","",DATEDIF(I31,TODAY(),"y")&" "&TEXT(MOD(MAX(MOD(DATEDIF(I31,TODAY(),"y")-11,100),9),10),"[<1]\го\д;[<4]\го\да;лет")&" "&DATEDIF(I31,TODAY(),"ym")&" меся"&TEXT(MOD(DATEDIF(I31,TODAY(),"ym")-1,11),"[<1]ц;[<4]ца;цев")&" "&DATEDIF(I31,TODAY(),"md")&" д"&TEXT(MOD(MAX(MOD(DATEDIF(I31,TODAY(),"md")-11,100),9),10),"[<1]ень;[<4]ня;ней")) -> 115 лет 11 месяцев 1 день | K31: Резчик ПРС 3 р. % | L31: =IF(K31="Резчик ПРС 3 р. %",6029) -> 6029 | M31: К | P31: Резка и упаковка ленты бумажной для плоттеров 80 г/м2, ф. 1000 мм | Q31: =IF(P31="Резка и упаковка ленты бумажной для плоттеров 80 г/м2, ф. 1000 мм",4874) -> 4874
A32: 31 | B32: Дворянкина Е.Л. | C32: =IF($B32="Дворянкина Е.Л.",508) -> 508 | D32: =IF($B32="Дворянкина Е.Л.",50) -> 50 | E32: =IF($B32="Дворянкина Е.Л.",0) -> 0 | F32: =IF($B32="Дворянкина Е.Л.",0) -> 0 | G32: =IF($B32="Дворянкина Е.Л.",0) -> 0 | H32: =IF($B32="Дворянкина Е.Л.",0) -> 0 | I32: =IF($B32="Дворянкина Е.Л.",1.35) -> 1.35 | J32: =IF($B32="Дворянкина Е.Л.",20) -> 20 | K32: Резчик ПРС 4 р. | L32: =IF(K32="Резчик ПРС 4 р.",7012) -> 7012 | M32: О | P32: Резка и упаковка ленты бумажной для плоттеров 80 г/м2, ф. 1500 мм | Q32: =IF(P32="Резка и упаковка ленты бумажной для плоттеров 80 г/м2, ф. 1500 мм",8356) -> 8356
A33: 32 | B33: Дик А.С. | C33: =IF($B33="Дик А.С.",1089) -> 1089 | D33: =IF($B33="Дик А.С.",50) -> 50 | E33: =IF($B33="Дик А.С.",0) -> 0 | F33: =IF($B33="Дик А.С.",0) -> 0 | G33: =IF($B33="Дик А.С.",0) -> 0 | H33: =IF($B33="Дик А.С.",0) -> 0 | I33: =IF($B33="Дик А.С.",1.73) -> 1.73 | J33: =IF($B33="Дик А.С.",10) -> 10 | K33: Резчик ПРС 4 р. % | L33: =IF(K33="Резчик ПРС 4 р. %",7012) -> 7012 | M33: Ос | P33: Резка и упаковка ленты бумажной для плоттеров 80 г/м2, ф. 1510 мм | Q33: =IF(P33="Резка и упаковка ленты бумажной для плоттеров 80 г/м2, ф. 1510 мм",8356) -> 8356
A34: 33 | B34: Дорц Д.В. | C34: =IF($B34="Дорц Д.В.",1147) -> 1147 | D34: =IF($B34="Дорц Д.В.",50) -> 50 | E34: =IF($B34="Дорц Д.В.",0) -> 0 | F34: =IF($B34="Дорц Д.В.",0) -> 0 | G34: =IF($B34="Дорц Д.В.",0) -> 0 | H34: =IF($B34="Дорц Д.В.",0) -> 0 | I34: =IF($B34="Дорц Д.В.",1.35) -> 1.35 | J34: =IF($B34="Дорц Д.В.",0) -> 0 | K34: Сушильщик 4 р. | L34: =IF(K34="Сушильщик 4 р.",7012) -> 7012 | M34: Оу | P34: Резка и упаковка ленты бумажной для плоттеров 80 г/м2, ф. 1680 мм | Q34: =IF(P34="Резка и упаковка ленты бумажной для плоттеров 80 г/м2, ф. 1680 мм",8356) -> 8356
A35: 34 | B35: Драгун В.В. | C35: =IF($B35="Драгун В.В.",481) -> 481 | D35: =IF($B35="Драгун В.В.",50) -> 50 | E35: =IF($B35="Драгун В.В.",20) -> 20 | F35: =IF($B35="Драгун В.В.",0) -> 0 | G35: =IF($B35="Драгун В.В.",12.5) -> 12.5 | H35: =IF($B35="Драгун В.В.",0) -> 0 | I35: =IF($B35="Драгун В.В.",1.9) -> 1.9 | J35: =IF($B35="Драгун В.В.",20) -> 20 | K35: Сушильщик 4 р. % | L35: =IF(K35="Сушильщик 4 р. %",7012) -> 7012 | M35: Пр | P35: Резка и упаковка ленты бумажной для плоттеров 80 г/м2, ф. 1800 мм | Q35: =IF(P35="Резка и упаковка ленты бумажной для плоттеров 80 г/м2, ф. 1800 мм",8356) -> 8356
A36: 35 | B36: Драпезо Ю.Н. | C36: =IF($B36="Драпезо Ю.Н.",548) -> 548 | D36: =IF($B36="Драпезо Ю.Н.",50) -> 50 | E36: =IF($B36="Драпезо Ю.Н.",30) -> 30 | F36: =IF($B36="Драпезо Ю.Н.",0) -> 0 | G36: =IF($B36="Драпезо Ю.Н.",0) -> 0 | H36: =IF($B36="Драпезо Ю.Н.",0) -> 0 | I36: =IF($B36="Драпезо Ю.Н.",1.35) -> 1.35 | J36: =IF($B36="Драпезо Ю.Н.",0) -> 0 | K36: Тран.мат-ов | L36: =IF(K36="Тран.мат-ов",5481) -> 5481 | M36: ЧО | P36: Резка и упаковка ленты бумажной для плоттеров 80 г/м2, ф. 1900 мм | Q36: =IF(P36="Резка и упаковка ленты бумажной для плоттеров 80 г/м2, ф. 1900 мм",8356) -> 8356
A37: 36 | B37: Драч М.В. | C37: =IF($B37="Драч М.В.",1659) -> 1659 | D37: =IF($B37="Драч М.В.",50) -> 50 | E37: =IF($B37="Драч М.В.",0) -> 0 | F37: =IF($B37="Драч М.В.",0) -> 0 | G37: =IF($B37="Драч М.В.",0) -> 0 | H37: =IF($B37="Драч М.В.",0) -> 0 | I37: =IF($B37="Драч М.В.",1.35) -> 1.35 | J37: =IF($B37="Драч М.В.",0) -> 0 | K37: Уб.пом-й (произв.) | L37: =IF(K37="Уб.пом-й (произв.)",0) -> 0 | P37: Резка и упаковка ленты бумажной для плоттеров 80 г/м2, ф. 2000 мм | Q37: =IF(P37="Резка и упаковка ленты бумажной для плоттеров 80 г/м2, ф. 2000 мм",8356) -> 8356
A38: 37 | B38: Дроздецкий В.С. | C38: =IF($B38="Дроздецкий В.С.",1335) -> 1335 | D38: =IF($B38="Дроздецкий В.С.",50) -> 50 | E38: =IF($B38="Дроздецкий В.С.",30) -> 30 | F38: =IF($B38="Дроздецкий В.С.",0) -> 0 | G38: =IF($B38="Дроздецкий В.С.",0) -> 0 | H38: =IF($B38="Дроздецкий В.С.",0) -> 0 | I38: =IF($B38="Дроздецкий В.С.",1.35) -> 1.35 | J38: =IF($B38="Дроздецкий В.С.",5) -> 5 | P38: Резка и упаковка ленты бумажной для плоттеров 80 г/м2, ф. 610 мм
A39: 38 | B39: Дунаев С.Е. | C39: =IF($B39="Дунаев С.Е.",2035) -> 2035 | D39: =IF($B39="Дунаев С.Е.",50) -> 50 | E39: =IF($B39="Дунаев С.Е.",10) -> 10 | F39: =IF($B39="Дунаев С.Е.",0) -> 0 | G39: =IF($B39="Дунаев С.Е.",0) -> 0 | H39: =IF($B39="Дунаев С.Е.",0) -> 0 | I39: =IF($B39="Дунаев С.Е.",1.35) -> 1.35 | J39: =IF($B39="Дунаев С.Е.",10) -> 10 | P39: Резка и упаковка ленты бумажной для плоттеров 80 г/м2, ф. 840 мм
A40: 39 | B40: Ефремов С.А. | C40: =IF($B40="Ефремов С.А.",1698) -> 1698 | D40: =IF($B40="Ефремов С.А.",50) -> 50 | E40: =IF($B40="Ефремов С.А.",0) -> 0 | F40: =IF($B40="Ефремов С.А.",0) -> 0 | G40: =IF($B40="Ефремов С.А.",0) -> 0 | H40: =IF($B40="Ефремов С.А.",0) -> 0 | I40: =IF($B40="Ефремов С.А.",1.35) -> 1.35 | J40: =IF($B40="Ефремов С.А.",0) -> 0 | P40: Смена верхних сушильных сеток 1-5-й сушильных групп | Q40: =IF(P40="Смена верхних сушильных сеток 1-5-й сушильных групп",168705) -> 168705
A41: 40 | B41: Жавранок И.Г. | C41: =IF($B41="Жавранок И.Г.",712) -> 712 | D41: =IF($B41="Жавранок И.Г.",50) -> 50 | E41: =IF($B41="Жавранок И.Г.",0) -> 0 | F41: =IF($B41="Жавранок И.Г.",0) -> 0 | G41: =IF($B41="Жавранок И.Г.",0) -> 0 | H41: =IF($B41="Жавранок И.Г.",0) -> 0 | I41: =IF($B41="Жавранок И.Г.",1.16) -> 1.16 | J41: =IF($B41="Жавранок И.Г.",20) -> 20 | P41: Смена канатика | Q41: =IF(P41="Смена канатика",53279) -> 53279
A42: 41 | B42: Жердочкина А.М. | C42: =IF($B42="Жердочкина А.М.",1141) -> 1141 | D42: =IF($B42="Жердочкина А.М.",50) -> 50 | E42: =IF($B42="Жердочкина А.М.",0) -> 0 | F42: =IF($B42="Жердочкина А.М.",0) -> 0 | G42: =IF($B42="Жердочкина А.М.",0) -> 0 | H42: =IF($B42="Жердочкина А.М.",0) -> 0 | I42: =IF($B42="Жердочкина А.М.",1.16) -> 1.16 | J42: =IF($B42="Жердочкина А.М.",5) -> 5 | P42: Смена нижних сушильных сеток 1-5-й сушильных групп | Q42: =IF(P42="Смена нижних сушильных сеток 1-5-й сушильных групп",171505) -> 171505
A43: 42 | B43: Жизневская Т.Ф. | C43: =IF($B43="Жизневская Т.Ф.",491) -> 491 | D43: =IF($B43="Жизневская Т.Ф.",50) -> 50 | E43: =IF($B43="Жизневская Т.Ф.",0) -> 0 | F43: =IF($B43="Жизневская Т.Ф.",0) -> 0 | G43: =IF($B43="Жизневская Т.Ф.",0) -> 0 | H43: =IF($B43="Жизневская Т.Ф.",0) -> 0 | I43: =IF($B43="Жизневская Т.Ф.",1.57) -> 1.57 | J43: =IF($B43="Жизневская Т.Ф.",20) -> 20 | P43: Смена прессовых иглопробивных сукон со снятием сукна вручню | Q43: =IF(P43="Смена прессовых иглопробивных сукон со снятием сукна вручню",139841) -> 139841
A44: 43 | B44: Жудрак Л.В. | C44: =IF($B44="Жудрак Л.В.",1500) -> 1500 | D44: =IF($B44="Жудрак Л.В.",50) -> 50 | E44: =IF($B44="Жудрак Л.В.",0) -> 0 | F44: =IF($B44="Жудрак Л.В.",0) -> 0 | G44: =IF($B44="Жудрак Л.В.",0) -> 0 | H44: =IF($B44="Жудрак Л.В.",0) -> 0 | I44: =IF($B44="Жудрак Л.В.",1.16) -> 1.16 | J44: =IF($B44="Жудрак Л.В.",5) -> 5 | P44: Смена прессовых сукон БДМ№2 | Q44: =IF(P44="Смена прессовых сукон БДМ№2",43914) -> 43914
A45: 44 | B45: Журавлёв Д.Е. | C45: =IF($B45="Журавлёв Д.Е.",1696) -> 1696 | D45: =IF($B45="Журавлёв Д.Е.",50) -> 50 | E45: =IF($B45="Журавлёв Д.Е.",0) -> 0 | F45: =IF($B45="Журавлёв Д.Е.",0) -> 0 | G45: =IF($B45="Журавлёв Д.Е.",0) -> 0 | H45: =IF($B45="Журавлёв Д.Е.",0) -> 0 | I45: =IF($B45="Журавлёв Д.Е.",1.35) -> 1.35 | J45: =IF($B45="Журавлёв Д.Е.",0) -> 0 | P45: Смена сетки БДМ | Q45: =IF(P45="Смена сетки БДМ",285830) -> 285830
A46: 45 | B46: Залан А.В. | C46: =IF($B46="Залан А.В.",856) -> 856 | D46: =IF($B46="Залан А.В.",50) -> 50 | E46: =IF($B46="Залан А.В.",5) -> 5 | F46: =IF($B46="Залан А.В.",0) -> 0 | G46: =IF($B46="Залан А.В.",0) -> 0 | H46: =IF($B46="Залан А.В.",0) -> 0 | I46: =IF($B46="Залан А.В.",1.35) -> 1.35 | J46: =IF($B46="Залан А.В.",20) -> 20 | P46: Смена сетки БДМ№2 | Q46: =IF(P46="Смена сетки БДМ№2",203513) -> 203513
A47: 46 | B47: Захаров С.А. | C47: =IF($B47="Захаров С.А.",853) -> 853 | D47: =IF($B47="Захаров С.А.",50) -> 50 | E47: =IF($B47="Захаров С.А.",60) -> 60 | F47: =IF($B47="Захаров С.А.",0) -> 0 | G47: =IF($B47="Захаров С.А.",0) -> 0 | H47: =IF($B47="Захаров С.А.",0) -> 0 | I47: =IF($B47="Захаров С.А.",1.35) -> 1.35 | J47: =IF($B47="Захаров С.А.",20) -> 20 | P47: Смена сушильных сеток БДМ№2 | Q47: =IF(P47="Смена сушильных сеток БДМ№2",83586) -> 83586
A48: 47 | B48: Заяц Т.Л. | C48: =IF($B48="Заяц Т.Л.",509) -> 509 | D48: =IF($B48="Заяц Т.Л.",50) -> 50 | E48: =IF($B48="Заяц Т.Л.",0) -> 0 | F48: =IF($B48="Заяц Т.Л.",16) -> 16 | G48: =IF($B48="Заяц Т.Л.",0) -> 0 | H48: =IF($B48="Заяц Т.Л.",0) -> 0 | I48: =IF($B48="Заяц Т.Л.",1.57) -> 1.57 | J48: =IF($B48="Заяц Т.Л.",20) -> 20 | P48: Снятие иглопробивных сукон вручню | Q48: =IF(P48="Снятие иглопробивных сукон вручню",70261) -> 70261
A49: 48 | B49: Зеленкевич Нат.В. | C49: =IF($B49="Зеленкевич Нат.В.",501) -> 501 | D49: =IF($B49="Зеленкевич Нат.В.",50) -> 50 | E49: =IF($B49="Зеленкевич Нат.В.",0) -> 0 | F49: =IF($B49="Зеленкевич Нат.В.",0) -> 0 | G49: =IF($B49="Зеленкевич Нат.В.",0) -> 0 | H49: =IF($B49="Зеленкевич Нат.В.",0) -> 0 | I49: =IF($B49="Зеленкевич Нат.В.",1.16) -> 1.16 | J49: =IF($B49="Зеленкевич Нат.В.",15) -> 15 | P49: Снятие или надевание сетки БДМ вручную | Q49: =IF(P49="Снятие или надевание сетки БДМ вручную",240807) -> 240807
A50: 49 | B50: Зеленкевич Ник.В. | C50: =IF($B50="Зеленкевич Ник.В.",1083) -> 1083 | D50: =IF($B50="Зеленкевич Ник.В.",50) -> 50 | E50: =IF($B50="Зеленкевич Ник.В.",0) -> 0 | F50: =IF($B50="Зеленкевич Ник.В.",20) -> 20 | G50: =IF($B50="Зеленкевич Ник.В.",0) -> 0 | H50: =IF($B50="Зеленкевич Ник.В.",0) -> 0 | I50: =IF($B50="Зеленкевич Ник.В.",1.73) -> 1.73 | J50: =IF($B50="Зеленкевич Ник.В.",10) -> 10 | P50: Упаковка ролевой бумаги | Q50: =IF(P50="Упаковка ролевой бумаги",3646) -> 3646
A51: 50 | B51: Зеленко В.Л. | C51: =IF($B51="Зеленко В.Л.",1360) -> 1360 | D51: =IF($B51="Зеленко В.Л.",50) -> 50 | E51: =IF($B51="Зеленко В.Л.",40) -> 40 | F51: =IF($B51="Зеленко В.Л.",0) -> 0 | G51: =IF($B51="Зеленко В.Л.",0) -> 0 | H51: =IF($B51="Зеленко В.Л.",0) -> 0 | I51: =IF($B51="Зеленко В.Л.",1.57) -> 1.57 | J51: =IF($B51="Зеленко В.Л.",5) -> 5 | P51: Упаковка ролевой документной бумаги | Q51: =IF(P51="Упаковка ролевой документной бумаги",2512) -> 2512
A52: 51 | B52: Игнатов К.И. | C52: =IF($B52="Игнатов К.И.",1703) -> 1703 | D52: =IF($B52="Игнатов К.И.",50) -> 50 | E52: =IF($B52="Игнатов К.И.",0) -> 0 | F52: =IF($B52="Игнатов К.И.",0) -> 0 | G52: =IF($B52="Игнатов К.И.",0) -> 0 | H52: =IF($B52="Игнатов К.И.",0) -> 0 | I52: =IF($B52="Игнатов К.И.",1.35) -> 1.35 | J52: =IF($B52="Игнатов К.И.",0) -> 0 | P52: Установка иглопробивного сукна | Q52: =IF(P52="Установка иглопробивного сукна",83288) -> 83288
A53: 52 | B53: Кадевич О.В. | C53: =IF($B53="Кадевич О.В.",1379) -> 1379 | D53: =IF($B53="Кадевич О.В.",30) -> 30 | E53: =IF($B53="Кадевич О.В.",0) -> 0 | F53: =IF($B53="Кадевич О.В.",0) -> 0 | G53: =IF($B53="Кадевич О.В.",0) -> 0 | H53: =IF($B53="Кадевич О.В.",0) -> 0 | I53: =IF($B53="Кадевич О.В.",1.35) -> 1.35 | J53: =IF($B53="Кадевич О.В.",5) -> 5 | P53: Чистка ГРВ и ГРГ | Q53: =IF(P53="Чистка ГРВ и ГРГ",36134) -> 36134
A54: 54 | B54: Каляпина К.А. | C54: =IF($B54="Каляпина К.А.",1537) -> 1537 | D54: =IF($B54="Каляпина К.А.",50) -> 50 | E54: =IF($B54="Каляпина К.А.",0) -> 0 | F54: =IF($B54="Каляпина К.А.",0) -> 0 | G54: =IF($B54="Каляпина К.А.",0) -> 0 | H54: =IF($B54="Каляпина К.А.",0) -> 0 | I54: =IF($B54="Каляпина К.А.",1.16) -> 1.16 | J54: =IF($B54="Каляпина К.А.",0) -> 0 | P54: Чистка и промывка бассейнов: | Q54: =IF(P54="Чистка и промывка бассейнов: ","") -> 
A55: 55 | B55: Карась А.Н. | C55: =IF($B55="Карась А.Н.",2100) -> 2100 | D55: =IF($B55="Карась А.Н.",50) -> 50 | E55: =IF($B55="Карась А.Н.",20) -> 20 | F55: =IF($B55="Карась А.Н.",24) -> 24 | G55: =IF($B55="Карась А.Н.",13) -> 13 | H55: =IF($B55="Карась А.Н.",0) -> 0 | I55: =IF($B55="Карась А.Н.",1.9) -> 1.9 | J55: =IF($B55="Карась А.Н.",10) -> 10 | P55: Чистка и промывка и чистка сгустителя | Q55: =IF(P55="Чистка и промывка и чистка сгустителя",10688) -> 10688
A56: 56 | B56: Кирилуша Е.Г. | C56: =IF($B56="Кирилуша Е.Г.",1706) -> 1706 | D56: 1706 | E56: 1706 | F56: 1706 | G56: 1706 | H56: 1706 | I56: 1706 | J56: 1706 | P56: Чистка и промывка и чистка флотоловушки | Q56: =IF(P56="Чистка и промывка и чистка флотоловушки",36134) -> 36134
A57: 57 | B57: Кирилуша С.В. | C57: =IF($B57="Кирилуша С.В.",497) -> 497 | D57: 497 | E57: 497 | F57: 497 | G57: 497 | H57: 497 | I57: 497 | J57: 497
A58: 58 | B58: Климович С.К. | C58: =IF($B58="Ясинский В.С.",70) -> FALSE | D58: =IF($B58="Ясинский В.С.",50) -> FALSE | E58: =IF($B58="Ясинский В.С.",10) -> FALSE | F58: =IF($B58="Ясинский В.С.",0) -> FALSE | G58: =IF($B58="Ясинский В.С.",0) -> FALSE | H58: =IF($B58="Ясинский В.С.",0) -> FALSE | I58: =IF($B58="Ясинский В.С.",1.35) -> FALSE | J58: =IF($B58="Ясинский В.С.",20) -> FALSE
A59: 59 | B59: Ковалёв Д.А. | C59: =IF($B59="Ковалёв Д.А.",1538) -> 1538 | D59: =IF($B59="Ковалёв Д.А.",50) -> 50 | E59: =IF($B59="Ковалёв Д.А.",100) -> 100 | F59: =IF($B59="Ковалёв Д.А.",0) -> 0 | G59: =IF($B59="Ковалёв Д.А.",0) -> 0 | H59: =IF($B59="Ковалёв Д.А.",0) -> 0 | I59: =IF($B59="Ковалёв Д.А.",1.35) -> 1.35 | J59: =IF($B59="Ковалёв Д.А.",5) -> 5
A60: 60 | B60: Коваль О.Г. | C60: =IF($B60="Коваль О.Г.",1497) -> 1497 | D60: =IF($B60="Коваль О.Г.",50) -> 50 | E60: =IF($B60="Коваль О.Г.",10) -> 10 | F60: =IF($B60="Коваль О.Г.",0) -> 0 | G60: =IF($B60="Коваль О.Г.",0) -> 0 | H60: =IF($B60="Коваль О.Г.",0) -> 0 | I60: =IF($B60="Коваль О.Г.",1.35) -> 1.35 | J60: =IF($B60="Коваль О.Г.",0) -> 0
A61: 61 | B61: Козаков С.Л. | C61: =IF($B61="Козаков С.Л.",1404) -> 1404 | D61: =IF($B61="Козаков С.Л.",50) -> 50 | E61: =IF($B61="Козаков С.Л.",10) -> 10 | F61: =IF($B61="Козаков С.Л.",0) -> 0 | G61: =IF($B61="Козаков С.Л.",0) -> 0 | H61: =IF($B61="Козаков С.Л.",0) -> 0 | I61: =IF($B61="Козаков С.Л.",1.35) -> 1.35 | J61: =IF($B61="Козаков С.Л.",5) -> 5
A62: 62 | B62: Комадей Д.В. | C62: =IF($B62="Комадей Д.В.",1454) -> 1454 | D62: =IF($B62="Комадей Д.В.",50) -> 50 | E62: =IF($B62="Комадей Д.В.",20) -> 20 | F62: =IF($B62="Комадей Д.В.",0) -> 0 | G62: =IF($B62="Комадей Д.В.",0) -> 0 | H62: =IF($B62="Комадей Д.В.",0) -> 0 | I62: =IF($B62="Комадей Д.В.",1.35) -> 1.35 | J62: =IF($B62="Комадей Д.В.",5) -> 5
A63: 63 | B63: Конон Н.В. | C63: =IF($B63="Конон Н.В.",2338) -> 2338 | D63: =IF($B63="Конон Н.В.",50) -> 50 | E63: =IF($B63="Конон Н.В.",10) -> 10 | F63: =IF($B63="Конон Н.В.",0) -> 0 | G63: =IF($B63="Конон Н.В.",0) -> 0 | H63: =IF($B63="Конон Н.В.",0) -> 0 | I63: =IF($B63="Конон Н.В.",1.16) -> 1.16 | J63: =IF($B63="Конон Н.В.",10) -> 10
A64: 64 | B64: Короленко А.В. | C64: =IF($B64="Короленко А.В.",532) -> 532 | D64: =IF($B64="Короленко А.В.",50) -> 50 | E64: =IF($B64="Короленко А.В.",10) -> 10 | F64: =IF($B64="Короленко А.В.",0) -> 0 | G64: =IF($B64="Короленко А.В.",0) -> 0 | H64: =IF($B64="Короленко А.В.",0) -> 0 | I64: =IF($B64="Короленко А.В.",1.57) -> 1.57 | J64: =IF($B64="Короленко А.В.",20) -> 20
A65: 65 | B65: Костин А.М. | C65: =IF($B65="Костин А.М.",1653) -> 1653 | D65: =IF($B65="Костин А.М.",50) -> 50 | E65: =IF($B65="Костин А.М.",0) -> 0 | F65: =IF($B65="Костин А.М.",0) -> 0 | G65: =IF($B65="Костин А.М.",0) -> 0 | H65: =IF($B65="Костин А.М.",0) -> 0 | I65: =IF($B65="Костин А.М.",1.35) -> 1.35 | J65: =IF($B65="Костин А.М.",0) -> 0
A66: 66 | B66: Кудревич О.М. | C66: =IF($B66="Кудревич О.М.",170) -> 170 | D66: =IF($B66="Кудревич О.М.",50) -> 50 | E66: =IF($B66="Кудревич О.М.",30) -> 30 | F66: =IF($B66="Кудревич О.М.",0) -> 0 | G66: =IF($B66="Кудревич О.М.",0) -> 0 | H66: =IF($B66="Кудревич О.М.",0) -> 0 | I66: =IF($B66="Кудревич О.М.",1.35) -> 1.35 | J66: =IF($B66="Кудревич О.М.",20) -> 20
A67: 67 | B67: Кузьбар И.Н. | C67: =IF($B67="Кузьбар И.Н.",1637) -> 1637 | D67: 1637 | E67: 1637 | F67: 1637 | G67: 1637 | H67: 1637 | I67: 1637 | J67: 1637
A68: 68 | B68: Курак С.В. | C68: =IF($B68="Ясинский В.С.",70) -> FALSE | D68: =IF($B68="Ясинский В.С.",50) -> FALSE | E68: =IF($B68="Ясинский В.С.",10) -> FALSE | F68: =IF($B68="Ясинский В.С.",0) -> FALSE | G68: =IF($B68="Ясинский В.С.",0) -> FALSE | H68: =IF($B68="Ясинский В.С.",0) -> FALSE | I68: =IF($B68="Ясинский В.С.",1.35) -> FALSE | J68: =IF($B68="Ясинский В.С.",20) -> FALSE
A69: 69 | B69: Курносова О.Ф. | C69: =IF($B69="Курносова О.Ф.",478) -> 478 | D69: =IF($B69="Курносова О.Ф.",50) -> 50 | E69: =IF($B69="Курносова О.Ф.",0) -> 0 | F69: =IF($B69="Курносова О.Ф.",0) -> 0 | G69: =IF($B69="Курносова О.Ф.",0) -> 0 | H69: =IF($B69="Курносова О.Ф.",0) -> 0 | I69: =IF($B69="Курносова О.Ф.",1.57) -> 1.57 | J69: =IF($B69="Курносова О.Ф.",20) -> 20
A70: 70 | B70: Кучинская Е.М. | C70: =IF($B70="Кучинская Е.М.",708) -> 708 | D70: =IF($B70="Кучинская Е.М.",50) -> 50 | E70: =IF($B70="Кучинская Е.М.",0) -> 0 | F70: =IF($B70="Кучинская Е.М.",0) -> 0 | G70: =IF($B70="Кучинская Е.М.",0) -> 0 | H70: =IF($B70="Кучинская Е.М.",0) -> 0 | I70: =IF($B70="Кучинская Е.М.",1.35) -> 1.35 | J70: =IF($B70="Кучинская Е.М.",20) -> 20
A71: 71 | B71: Лебедев О.Л. | C71: =IF($B71="Лебедев О.Л.",514) -> 514 | D71: =IF($B71="Лебедев О.Л.",50) -> 50 | E71: =IF($B71="Лебедев О.Л.",20) -> 20 | F71: =IF($B71="Лебедев О.Л.",0) -> 0 | G71: =IF($B71="Лебедев О.Л.",0) -> 0 | H71: =IF($B71="Лебедев О.Л.",0) -> 0 | I71: =IF($B71="Лебедев О.Л.",1.57) -> 1.57 | J71: =IF($B71="Лебедев О.Л.",20) -> 20
A72: 72 | B72: Ливанович С.В. | C72: =IF($B72="Ливанович С.В.",536) -> 536 | D72: =IF($B72="Ливанович С.В.",50) -> 50 | E72: =IF($B72="Ливанович С.В.",0) -> 0 | F72: =IF($B72="Ливанович С.В.",0) -> 0 | G72: =IF($B72="Ливанович С.В.",0) -> 0 | H72: =IF($B72="Ливанович С.В.",0) -> 0 | I72: =IF($B72="Ливанович С.В.",1.57) -> 1.57 | J72: =IF($B72="Ливанович С.В.",20) -> 20
A73: 73 | B73: Лысковец А.Н. | C73: =IF($B73="Лысковец А.Н.",1291) -> 1291 | D73: =IF($B73="Лысковец А.Н.",50) -> 50 | E73: =IF($B73="Лысковец А.Н.",30) -> 30 | F73: =IF($B73="Лысковец А.Н.",0) -> 0 | G73: =IF($B73="Лысковец А.Н.",0) -> 0 | H73: =IF($B73="Лысковец А.Н.",0) -> 0 | I73: =IF($B73="Лысковец А.Н.",1.35) -> 1.35 | J73: =IF($B73="Лысковец А.Н.",5) -> 5
A74: 74 | B74: Лысковец О.И. | C74: =IF($B74="Лысковец О.И.",1517) -> 1517 | D74: =IF($B74="Лысковец О.И.",50) -> 50 | E74: =IF($B74="Лысковец О.И.",50) -> 50 | F74: =IF($B74="Лысковец О.И.",0) -> 0 | G74: =IF($B74="Лысковец О.И.",0) -> 0 | H74: =IF($B74="Лысковец О.И.",0) -> 0 | I74: =IF($B74="Лысковец О.И.",1.57) -> 1.57 | J74: =IF($B74="Лысковец О.И.",5) -> 5
A75: 75 | B75: Макатерчик А.Н. | C75: =IF($B75="Макатерчик А.Н.",1307) -> 1307 | D75: =IF($B75="Макатерчик А.Н.",50) -> 50 | E75: =IF($B75="Макатерчик А.Н.",0) -> 0 | F75: =IF($B75="Макатерчик А.Н.",0) -> 0 | G75: =IF($B75="Макатерчик А.Н.",10) -> 10 | H75: =IF($B75="Макатерчик А.Н.",0) -> 0 | I75: =IF($B75="Макатерчик А.Н.",1.9) -> 1.9 | J75: =IF($B75="Макатерчик А.Н.",5) -> 5
A76: 76 | B76: Макрицкий Ю.В. | C76: =IF($B76="Макрицкий Ю.В.",2108) -> 2108 | D76: =IF($B76="Макрицкий Ю.В.",50) -> 50 | E76: =IF($B76="Макрицкий Ю.В.",0) -> 0 | F76: =IF($B76="Макрицкий Ю.В.",24) -> 24 | G76: =IF($B76="Макрицкий Ю.В.",10) -> 10 | H76: =IF($B76="Макрицкий Ю.В.",0) -> 0 | I76: 1.9 | J76: 10
A77: 77 | B77: Мисник Ю.А. | C77: =IF($B77="Мисник Ю.А.",603) -> 603 | D77: =IF($B77="Мисник Ю.А.",50) -> 50 | E77: =IF($B77="Мисник Ю.А.",10) -> 10 | F77: =IF($B77="Мисник Ю.А.",0) -> 0 | G77: =IF($B77="Мисник Ю.А.",10) -> 10 | H77: =IF($B77="Мисник Ю.А.",0) -> 0 | I77: =IF($B77="Мисник Ю.А.",1.9) -> 1.9 | J77: =IF($B77="Мисник Ю.А.",15) -> 15
A78: 78 | B78: Мишук А.В. | C78: =IF($B78="Мишук А.В.",1677) -> 1677 | D78: =IF($B78="Мишук А.В.",50) -> 50 | E78: =IF($B78="Мишук А.В.",0) -> 0 | F78: =IF($B78="Мишук А.В.",0) -> 0 | G78: =IF($B78="Мишук А.В.",0) -> 0 | H78: =IF($B78="Мишук А.В.",0) -> 0 | I78: =IF($B78="Мишук А.В.",1.35) -> 1.35 | J78: =IF($B78="Мишук А.В.",0) -> 0
A79: 79 | B79: Мишук В.В. | C79: =IF($B79="Мишук В.В.",2037) -> 2037 | D79: 2037 | E79: 2037 | F79: 2037 | G79: 2037 | H79: 2037 | I79: 2037 | J79: 2037
A80: 80 | B80: Мишук О.В. | C80: =IF($B80="Мишук О.В.",2127) -> 2127 | D80: =IF($B80="Мишук О.В.",50) -> 50 | E80: =IF($B80="Мишук О.В.",10) -> 10 | F80: =IF($B80="Мишук О.В.",0) -> 0 | G80: =IF($B80="Мишук О.В.",0) -> 0 | H80: =IF($B80="Мишук О.В.",0) -> 0 | I80: =IF($B80="Мишук О.В.",1.35) -> 1.35 | J80: =IF($B80="Мишук О.В.",10) -> 10
A81: 81 | B81: Мишук Р.В. | C81: =IF($B81="Мишук Р.В.",300) -> 300 | D81: =IF($B81="Мишук Р.В.",50) -> 50 | E81: =IF($B81="Мишук Р.В.",20) -> 20 | F81: =IF($B81="Мишук Р.В.",0) -> 0 | G81: =IF($B81="Мишук Р.В.",20) -> 20 | H81: =IF($B81="Мишук Р.В.",0) -> 0 | I81: =IF($B81="Мишук Р.В.",1.9) -> 1.9 | J81: =IF($B81="Мишук Р.В.",20) -> 20
A82: 82 | B82: Мороз А.П. | C82: =IF($B82="Мороз А.П.",1503) -> 1503 | D82: =IF($B82="Мороз А.П.",50) -> 50 | E82: =IF($B82="Мороз А.П.",0) -> 0 | F82: =IF($B82="Мороз А.П.",0) -> 0 | G82: =IF($B82="Мороз А.П.",0) -> 0 | H82: =IF($B82="Мороз А.П.",0) -> 0 | I82: =IF($B82="Мороз А.П.",1.57) -> 1.57 | J82: =IF($B82="Мороз А.П.",5) -> 5
A83: 83 | B83: Мурашко В.Г. | C83: =IF($B83="Мурашко В.Г.",1693) -> 1693 | D83: =IF($B83="Мурашко В.Г.",50) -> 50 | E83: =IF($B83="Мурашко В.Г.",0) -> 0 | F83: =IF($B83="Мурашко В.Г.",0) -> 0 | G83: =IF($B83="Мурашко В.Г.",0) -> 0 | H83: =IF($B83="Мурашко В.Г.",0) -> 0 | I83: =IF($B83="Мурашко В.Г.",1.35) -> 1.35 | J83: =IF($B83="Мурашко В.Г.",0) -> 0
A84: 84 | B84: Новоселов А.В. | C84: =IF($B84="Новоселов А.В.",1508) -> 1508 | D84: =IF($B84="Новоселов А.В.",50) -> 50 | E84: =IF($B84="Новоселов А.В.",30) -> 30 | F84: =IF($B84="Новоселов А.В.",0) -> 0 | G84: =IF($B84="Новоселов А.В.",0) -> 0 | H84: =IF($B84="Новоселов А.В.",0) -> 0 | I84: =IF($B84="Новоселов А.В.",1.35) -> 1.35 | J84: =IF($B84="Новоселов А.В.",5) -> 5
A85: 85 | B85: Орловский А.М. | C85: =IF($B85="Орловский А.М.",1674) -> 1674 | D85: =IF($B85="Орловский А.М.",50) -> 50 | E85: =IF($B85="Орловский А.М.",0) -> 0 | F85: =IF($B85="Орловский А.М.",0) -> 0 | G85: =IF($B85="Орловский А.М.",0) -> 0 | H85: =IF($B85="Орловский А.М.",0) -> 0 | I85: =IF($B85="Орловский А.М.",1.35) -> 1.35 | J85: =IF($B85="Орловский А.М.",0) -> 0
A86: 86 | B86: Пантелей А.В. | C86: =IF($B86="Пантелей А.В.",833) -> 833 | D86: =IF($B86="Пантелей А.В.",50) -> 50 | E86: =IF($B86="Пантелей А.В.",0) -> 0 | F86: =IF($B86="Пантелей А.В.",0) -> 0 | G86: =IF($B86="Пантелей А.В.",0) -> 0 | H86: =IF($B86="Пантелей А.В.",0) -> 0 | I86: =IF($B86="Пантелей А.В.",1.35) -> 1.35 | J86: =IF($B86="Пантелей А.В.",20) -> 20
A87: 87 | B87: Петров В.А. | C87: =IF($B87="Петров В.А.",1393) -> 1393 | D87: =IF($B87="Петров В.А.",50) -> 50 | E87: =IF($B87="Петров В.А.",0) -> 0 | F87: =IF($B87="Петров В.А.",0) -> 0 | G87: =IF($B87="Петров В.А.",0) -> 0 | H87: =IF($B87="Петров В.А.",0) -> 0 | I87: =IF($B87="Петров В.А.",1.35) -> 1.35 | J87: =IF($B87="Петров В.А.",0) -> 0
A88: 88 | B88: Петровых В.В. | C88: =IF($B88="Петровых В.В.",2255) -> 2255 | D88: =IF($B88="Петровых В.В.",50) -> 50 | E88: =IF($B88="Петровых В.В.",0) -> 0 | F88: =IF($B88="Петровых В.В.",0) -> 0 | G88: =IF($B88="Петровых В.В.",0) -> 0 | H88: =IF($B88="Петровых В.В.",0) -> 0 | I88: =IF($B88="Петровых В.В.",1.57) -> 1.57 | J88: =IF($B88="Петровых В.В.",10) -> 10
A89: 89 | B89: Поплавский В.И. | C89: =IF($B89="Поплавский В.И.",255) -> 255 | D89: =IF($B89="Поплавский В.И.",50) -> 50 | E89: =IF($B89="Поплавский В.И.",30) -> 30 | F89: =IF($B89="Поплавский В.И.",0) -> 0 | G89: =IF($B89="Поплавский В.И.",0) -> 0 | H89: =IF($B89="Поплавский В.И.",0) -> 0 | I89: =IF($B89="Поплавский В.И.",1.35) -> 1.35 | J89: =IF($B89="Поплавский В.И.",20) -> 20
A90: 90 | B90: Пресняков Г.В. | C90: =IF($B90="Пресняков Г.В.",1676) -> 1676 | D90: =IF($B90="Пресняков Г.В.",50) -> 50 | E90: =IF($B90="Пресняков Г.В.",0) -> 0 | F90: =IF($B90="Пресняков Г.В.",0) -> 0 | G90: =IF($B90="Пресняков Г.В.",0) -> 0 | H90: =IF($B90="Пресняков Г.В.",0) -> 0 | I90: =IF($B90="Пресняков Г.В.",1.35) -> 1.35 | J90: =IF($B90="Пресняков Г.В.",0) -> 0
A91: 91 | B91: Раловец Л.П. | C91: =IF($B91="Раловец Л.П.",572) -> 572 | D91: =IF($B91="Раловец Л.П.",50) -> 50 | E91: =IF($B91="Раловец Л.П.",0) -> 0 | F91: =IF($B91="Раловец Л.П.",0) -> 0 | G91: =IF($B91="Раловец Л.П.",0) -> 0 | H91: =IF($B91="Раловец Л.П.",0) -> 0 | I91: =IF($B91="Раловец Л.П.",1.57) -> 1.57 | J91: =IF($B91="Раловец Л.П.",20) -> 20
A92: 92 | B92: Романов В.В. | C92: =IF($B92="Романов В.В.",2095) -> 2095 | D92: 2095 | E92: 2095 | F92: 2095 | G92: 2095 | H92: 2095 | I92: 2095 | J92: 2095
A93: 93 | B93: Романчук В.В. | C93: =IF($B93="Романчук В.В.",338) -> 338 | D93: =IF($B93="Романчук В.В.",50) -> 50 | E93: =IF($B93="Романчук В.В.",0) -> 0 | F93: =IF($B93="Романчук В.В.",20) -> 20 | G93: =IF($B93="Романчук В.В.",0) -> 0 | H93: =IF($B93="Романчук В.В.",0) -> 0 | I93: =IF($B93="Романчук В.В.",1.73) -> 1.73 | J93: =IF($B93="Романчук В.В.",20) -> 20
A94: 94 | B94: Ротченкова С.С. | C94: =IF($B94="Ротченкова С.С.",231) -> 231 | D94: =IF($B94="Ротченкова С.С.",50) -> 50 | E94: =IF($B94="Ротченкова С.С.",30) -> 30 | F94: =IF($B94="Ротченкова С.С.",0) -> 0 | G94: =IF($B94="Ротченкова С.С.",0) -> 0 | H94: =IF($B94="Ротченкова С.С.",0) -> 0 | I94: =IF($B94="Ротченкова С.С.",1.35) -> 1.35 | J94: =IF($B94="Ротченкова С.С.",20) -> 20
A95: 95 | B95: Рощупкина Л.И. | C95: =IF($B95="Рощупкина Л.И.",1608) -> 1608 | D95: =IF($B95="Рощупкина Л.И.",50) -> 50 | E95: =IF($B95="Рощупкина Л.И.",10) -> 10 | F95: =IF($B95="Рощупкина Л.И.",0) -> 0 | G95: =IF($B95="Рощупкина Л.И.",0) -> 0 | H95: =IF($B95="Рощупкина Л.И.",0) -> 0 | I95: =IF($B95="Рощупкина Л.И.",1.16) -> 1.16 | J95: =IF($B95="Рощупкина Л.И.",0) -> 0
A96: 96 | B96: Рудницкий С.Н. | C96: =IF($B96="Рудницкий С.Н.",465) -> 465 | D96: =IF($B96="Рудницкий С.Н.",50) -> 50 | E96: =IF($B96="Рудницкий С.Н.",20) -> 20 | F96: =IF($B96="Рудницкий С.Н.",24) -> 24 | G96: 25 | H96: =IF($B96="Рудницкий С.Н.",0) -> 0 | I96: =IF($B96="Рудницкий С.Н.",1.9) -> 1.9 | J96: =IF($B96="Рудницкий С.Н.",20) -> 20
A97: 97 | B97: Рябов О.С. | C97: =IF($B97="Рябов О.С.",462) -> 462 | D97: =IF($B97="Рябов О.С.",50) -> 50 | E97: =IF($B97="Рябов О.С.",10) -> 10 | F97: =IF($B97="Рябов О.С.",16) -> 16 | G97: =IF($B97="Рябов О.С.",0) -> 0 | H97: =IF($B97="Рябов О.С.",0) -> 0 | I97: =IF($B97="Рябов О.С.",1.57) -> 1.57 | J97: =IF($B97="Рябов О.С.",5) -> 5
A98: 98 | B98: Савельева Н.И. | C98: =IF($B98="Савельева Н.И.",534) -> 534 | D98: =IF($B98="Савельева Н.И.",50) -> 50 | E98: =IF($B98="Савельева Н.И.",0) -> 0 | F98: =IF($B98="Савельева Н.И.",0) -> 0 | G98: =IF($B98="Савельева Н.И.",0) -> 0 | H98: =IF($B98="Савельева Н.И.",0) -> 0 | I98: =IF($B98="Савельева Н.И.",1.35) -> 1.35 | J98: =IF($B98="Савельева Н.И.",20) -> 20
A99: 99 | B99: Сандульская Л.А. | C99: =IF($B99="Сандульская Л.А.",420) -> 420 | D99: =IF($B99="Сандульская Л.А.",50) -> 50 | E99: =IF($B99="Сандульская Л.А.",40) -> 40 | F99: =IF($B99="Сандульская Л.А.",0) -> 0 | G99: =IF($B99="Сандульская Л.А.",0) -> 0 | H99: =IF($B99="Сандульская Л.А.",40) -> 40 | I99: =IF($B99="Сандульская Л.А.",0) -> 0 | J99: =IF($B99="Сандульская Л.А.",20) -> 20
A100: 100 | B100: Сацук А.Л. | C100: =IF($B100="Сацук А.Л.",761) -> 761 | D100: =IF($B100="Сацук А.Л.",50) -> 50 | E100: =IF($B100="Сацук А.Л.",40) -> 40 | F100: =IF($B100="Сацук А.Л.",24) -> 24 | G100: =IF($B100="Сацук А.Л.",13) -> 13 | H100: =IF($B100="Сацук А.Л.",0) -> 0 | I100: =IF($B100="Сацук А.Л.",1.9) -> 1.9 | J100: =IF($B100="Сацук А.Л.",20) -> 20
A101: 101 | B101: Сацукевич С.П. | C101: =IF($B101="Сацукевич С.П.",265) -> 265 | D101: =IF($B101="Сацукевич С.П.",50) -> 50 | E101: =IF($B101="Сацукевич С.П.",30) -> 30 | F101: =IF($B101="Сацукевич С.П.",0) -> 0 | G101: =IF($B101="Сацукевич С.П.",12.5) -> 12.5 | H101: =IF($B101="Сацукевич С.П.",0) -> 0 | I101: =IF($B101="Сацукевич С.П.",1.9) -> 1.9 | J101: =IF($B101="Сацукевич С.П.",15) -> 15
A102: 102 | B102: Свидрицкая В.С. | C102: =IF($B102="Свидрицкая В.С.",1256) -> 1256 | D102: =IF($B102="Свидрицкая В.С.",50) -> 50 | E102: =IF($B102="Свидрицкая В.С.",50) -> 50 | F102: =IF($B102="Свидрицкая В.С.",16) -> 16 | G102: =IF($B102="Свидрицкая В.С.",0) -> 0 | H102: =IF($B102="Свидрицкая В.С.",0) -> 0 | I102: =IF($B102="Свидрицкая В.С.",1.57) -> 1.57 | J102: =IF($B102="Свидрицкая В.С.",5) -> 5
A103: 103 | B103: Серий В.А. | C103: =IF($B103="Серий В.А.",515) -> 515 | D103: =IF($B103="Серий В.А.",50) -> 50 | E103: =IF($B103="Серий В.А.",80) -> 80 | F103: =IF($B103="Серий В.А.",0) -> 0 | G103: =IF($B103="Серий В.А.",0) -> 0 | H103: =IF($B103="Серий В.А.",0) -> 0 | I103: =IF($B103="Серий В.А.",1.35) -> 1.35 | J103: =IF($B103="Серий В.А.",20) -> 20
A104: 104 | B104: Симонова Т.В. | C104: =IF($B104="Симонова Т.В.",519) -> 519 | D104: =IF($B104="Симонова Т.В.",50) -> 50 | E104: =IF($B104="Симонова Т.В.",0) -> 0 | F104: =IF($B104="Симонова Т.В.",0) -> 0 | G104: =IF($B104="Симонова Т.В.",0) -> 0 | H104: =IF($B104="Симонова Т.В.",0) -> 0 | I104: =IF($B104="Симонова Т.В.",1.35) -> 1.35 | J104: =IF($B104="Симонова Т.В.",20) -> 20
A105: 105 | B105: Скачек А.В. | C105: =IF($B105="Скачек А.В.",1649) -> 1649 | D105: =IF($B105="Скачек А.В.",50) -> 50 | E105: =IF($B105="Скачек А.В.",0) -> 0 | F105: =IF($B105="Скачек А.В.",0) -> 0 | G105: =IF($B105="Скачек А.В.",0) -> 0 | H105: =IF($B105="Скачек А.В.",0) -> 0 | I105: =IF($B105="Скачек А.В.",1.35) -> 1.35 | J105: =IF($B105="Скачек А.В.",0) -> 0
A106: 106 | B106: Федотов С.В. | C106: =IF($B106="Федотов С.В.",1704) -> 1704 | D106: =IF($B106="Федотов С.В.",50) -> 50 | E106: =IF($B106="Федотов С.В.",0) -> 0 | F106: =IF($B106="Федотов С.В.",0) -> 0 | G106: =IF($B106="Федотов С.В.",0) -> 0 | H106: =IF($B106="Федотов С.В.",0) -> 0 | I106: =IF($B106="Федотов С.В.",1.35) -> 1.35 | J106: =IF($B106="Федотов С.В.",0) -> 0
A107: 107 | B107: Хомич Н.Н. | C107: =IF($B107="Хомич Н.Н.",589) -> 589 | D107: =IF($B107="Хомич Н.Н.",40) -> 40 | E107: =IF($B107="Хомич Н.Н.",40) -> 40 | F107: =IF($B107="Хомич Н.Н.",0) -> 0 | G107: =IF($B107="Хомич Н.Н.",0) -> 0 | H107: =IF($B107="Хомич Н.Н.",45) -> 45 | I107: =IF($B107="Хомич Н.Н.",0) -> 0 | J107: =IF($B107="Хомич Н.Н.",15) -> 15
A108: 108 | B108: Хомодеев В.В. | C108: =IF($B108="Хомодеев В.В.",2325) -> 2325 | D108: =IF($B108="Хомодеев В.В.",50) -> 50 | E108: =IF($B108="Хомодеев В.В.",30) -> 30 | F108: =IF($B108="Хомодеев В.В.",0) -> 0 | G108: =IF($B108="Хомодеев В.В.",0) -> 0 | H108: =IF($B108="Хомодеев В.В.",0) -> 0 | I108: =IF($B108="Хомодеев В.В.",1.35) -> 1.35 | J108: =IF($B108="Хомодеев В.В.",10) -> 10
A109: 109 | B109: Цедрик Т.Н. | C109: =IF($B109="Цедрик Т.Н.",1140) -> 1140 | D109: =IF($B109="Цедрик Т.Н.",50) -> 50 | E109: =IF($B109="Цедрик Т.Н.",0) -> 0 | F109: =IF($B109="Цедрик Т.Н.",0) -> 0 | G109: =IF($B109="Цедрик Т.Н.",0) -> 0 | H109: =IF($B109="Цедрик Т.Н.",0) -> 0 | I109: =IF($B109="Цедрик Т.Н.",1.16) -> 1.16 | J109: =IF($B109="Цедрик Т.Н.",10) -> 10
A110: 110 | B110: Шерий Д.В. | C110: =IF($B110="Шерий Д.В.",563) -> 563 | D110: =IF($B110="Шерий Д.В.",40) -> 40 | E110: =IF($B110="Шерий Д.В.",0) -> 0 | F110: =IF($B110="Шерий Д.В.",0) -> 0 | G110: =IF($B110="Шерий Д.В.",0) -> 0 | H110: =IF($B110="Шерий Д.В.",0) -> 0 | I110: =IF($B110="Шерий Д.В.",1.35) -> 1.35 | J110: =IF($B110="Шерий Д.В.",5) -> 5
A111: 111 | B111: Ясинский В.С. | C111: =IF($B111="Ясинский В.С.",70) -> 70 | D111: =IF($B111="Ясинский В.С.",50) -> 50 | E111: =IF($B111="Ясинский В.С.",10) -> 10 | F111: =IF($B111="Ясинский В.С.",0) -> 0 | G111: =IF($B111="Ясинский В.С.",0) -> 0 | H111: =IF($B111="Ясинский В.С.",0) -> 0 | I111: =IF($B111="Ясинский В.С.",1.35) -> 1.35 | J111: =IF($B111="Ясинский В.С.",20) -> 20
A112: 112 | C112: =IF($B112="","") ->  | J112: =IF(I112="","",DATEDIF(I112,TODAY(),"y")&" "&TEXT(MOD(MAX(MOD(DATEDIF(I112,TODAY(),"y")-11,100),9),10),"[<1]\го\д;[<4]\го\да;лет")&" "&DATEDIF(I112,TODAY(),"ym")&" меся"&TEXT(MOD(DATEDIF(I112,TODAY(),"ym")-1,11),"[<1]ц;[<4]ца;цев")&" "&DATEDIF(I112,TODAY(),"md")&" д"&TEXT(MOD(MAX(MOD(DATEDIF(I112,TODAY(),"md")-11,100),9),10),"[<1]ень;[<4]ня;ней")) -> 
A113: 113
A114: 114
A115: 115
A116: 116
A117: 117
A118: 118
A119: 119
A120: 120
A121: 121
A122: 122 | C122: =IF($B122="","") -> 
A123: 123
A124: 124
A125: 125
A126: 126
A127: 127
A128: 128
A129: 129
A130: 130
A131: 131
A132: 132 | C132: =IF($B132="","") -> 
A133: 133
A134: 134
A135: 135
A136: 136
A137: 137
A138: 138
A139: 139
A140: 140
A141: 141
A142: 142
A143: 143
A144: 144
A145: 145
A146: 146
A147: 147
A148: 148
A149: 149
A150: 150
